Workbook

Sheet т.1
I1: Таблица 1
A2: Количество населения и общедоступных библиотек Министерства культуры
A4: № | B4: ЦБС | C4: Население ( чел. в тыс.) | F4: Количество библиотек
C5: Всего | D5: гор. | E5: сельск. | F5: 2018 | H5: 2019
F6: всего | G6: из них в | H6: всего | I6: из них в
G7: сельской | I7: сельской
G8: местн. | I8: местн.
A9: 1 | B9: Абыйская | C9: 4 | D9: 2 | E9: 2 | F9: 7 | G9: 5 | H9: 7 | I9: 5
A10: 2 | B10: Аллаиховская | C10: =D10+E10 -> 2.7 | D10: 2.1 | E10: 0.6 | F10: 6 | G10: 4 | H10: 6 | I10: 4
A11: 3 | B11: Амгинская | C11: 16.7 | E11: 16.7 | F11: 16 | G11: 16 | H11: 16 | I11: 16
A12: 4 | B12: Анабарская | C12: 3.6 | E12: 3.6 | F12: 3 | G12: 3 | H12: 3 | I12: 3
A13: 5 | B13: Булунская | C13: 8.3 | D13: 4.6 | E13: 3.7 | F13: 8 | G13: 6 | H13: 8 | I13: 6
A14: 6 | B14: Верхневилюйская* | C14: 21 | E14: 21 | F14: 22 | G14: 22 | H14: 23 | I14: 23
A15: 7 | B15: Верхнеколымская | C15: 4 | D15: 2.7 | E15: 1.3 | F15: 7 | G15: 5 | H15: 7 | I15: 5
A16: 8 | B16: Верхоянская | C16: 11.1 | D16: 4.8 | E16: 6.3 | F16: 17 | G16: 13 | H16: 17 | I16: 13
A17: 9 | B17: Вилюйская | C17: 25 | D17: 13.8 | E17: 11.2 | F17: 24 | G17: 20 | H17: 24 | I17: 20
A18: 10 | B18: Горная | C18: 12 | E18: 12 | F18: 9 | G18: 9 | H18: 9 | I18: 9
A19: 11 | B19: Жиганская | C19: 4.2 | E19: 4.2 | F19: 5 | G19: 5 | H19: 5 | I19: 5
A20: 12 | B20: Кобяйская | C20: 12.3 | D20: 3.7 | E20: 8.6 | F20: 17 | G20: 15 | H20: 17 | I20: 15
A21: 13 | B21: Ленская | C21: 36.5 | D21: 31.8 | E21: 4.7 | F21: 21 | G21: 14 | H21: 21 | I21: 14
A22: 14 | B22: Момская | C22: 4 | E22: 4 | F22: 7 | G22: 7 | H22: 7 | I22: 7
A23: 15 | B23: Намская | C23: 24.7 | E23: 24.7 | F23: 20 | G23: 20 | H23: 20 | I23: 20
A24: 16 | B24: Нижнеколымская | C24: 4.3 | D24: 2.6 | E24: 1.7 | F24: 6 | G24: 3 | H24: 6 | I24: 3
A25: 17 | B25: Нюрбинская | C25: 23.7 | D25: 9.7 | E25: 14 | F25: 23 | G25: 20 | H25: 23 | I25: 20
A26: 18 | B26: Оймяконская | C26: 8.2 | D26: 5.4 | E26: 2.8 | F26: 9 | G26: 6 | H26: 9 | I26: 6
A27: 19 | B27: Олекминская | C27: 24.7 | D27: 9.3 | E27: 15.4 | F27: 27 | G27: 25 | H27: 27 | I27: 25
A28: 20 | B28: Оленекская | C28: 4.2 | E28: 4.2 | F28: 5 | G28: 5 | H28: 5 | I28: 5
A29: 21 | B29: Среднеколымская | C29: 7.4 | D29: 3.5 | E29: 3.9 | F29: 11 | G29: 9 | H29: 11 | I29: 9
A30: 22 | B30: Сунтарская | C30: 23.4 | E30: 23.4 | F30: 19 | G30: 19 | H30: 19 | I30: 19
A31: 23 | B31: Таттинская | C31: 16.2 | E31: 16.2 | F31: 15 | G31: 15 | H31: 15 | I31: 15
A32: 24 | B32: Томпонская | C32: 12.5 | D32: 7.1 | E32: 5.4 | F32: 13 | G32: 10 | H32: 13 | I32: 10
A33: 25 | B33: Усть-Алданская | C33: 20.6 | E33: 20.6 | F33: 28 | G33: 28 | H33: 28 | I33: 28
A34: 26 | B34: Усть-Майская | C34: 7.4 | D34: 5.3 | E34: 2.1 | F34: 10 | G34: 5 | H34: 10 | I34: 5
A35: 27 | B35: Усть-Янская | C35: 7 | D35: 3.8 | E35: 3.2 | F35: 9 | G35: 5 | H35: 9 | I35: 5
A36: 28 | B36: Хангаласская | C36: 32.8 | D36: 15.5 | E36: 17.3 | F36: 27 | G36: 22 | H36: 27 | I36: 22
A37: 29 | B37: Чурапчинская | C37: 21 | E37: 21 | F37: 19 | G37: 19 | H37: 19 | I37: 19
A38: 30 | B38: Мирнинская | C38: 72.5 | D38: 70 | E38: 2.5 | F38: 11 | G38: 3 | H38: 11 | I38: 3
A39: 31 | B39: Нерюнгринская | C39: 73.4 | D39: 72.3 | E39: 1.1 | F39: 8 | G39: 2 | H39: 8 | I39: 2
A40: 32 | B40: Эвено-Бытантайский | C40: =D40+E40 -> 2.8 | E40: 2.8 | F40: 3 | G40: 3 | H40: 3 | I40: 3
A41: 33 | B41: Якутская* | C41: 335.5 | D41: 318.8 | E41: 16.7 | F41: 16 | G41: 4 | H41: 18 | I41: 4
A42: 34 | B42: Алданский | C42: 38.4 | D42: 34.4 | E42: 4 | F42: 7 | G42: 2 | H42: 7 | I42: 2
A43: 35 | B43: М.-Кангаласский | C43: 30.8 | D43: 4.1 | E43: 26.7 | F43: 2 | G43: 2 | H43: 2 | I43: 2
A44: 36 | B44: ГБ ГП "г.Нерюнгри " | F44: 1 | H44: 1
A45: 37 | B45: Сунтарская ДЮПБ | F45: 1 | G45: 1 | H45: 1 | I45: 1
A46: 38 | B46: Бердигестях ДБ | F46: 1 | G46: 1 | H46: 1 | I46: 1
A47: 39 | B47: Хоринская Ввил. | F47: 1 | G47: 1
A48: 40 | B48: Б-ка ГО "п. Жатай" | C48: =D48+E48 -> 10.1 | D48: 10.1 | F48: 1 | H48: 1
B49: Итого по МБ | C49: =SUM(C9:C48) -> 967 | D49: =SUM(D9:D48) -> 637.4 | E49: =SUM(E9:E48) -> 329.6 | F49: =SUM(F9:F48) -> 462 | G49: =SUM(G9:G47) -> 374 | H49: =SUM(H9:H48) -> 464 | I49: =SUM(I9:I48) -> 374
B50: НБ РС(Я) | F50: 1 | H50: 1
B51: ЦДЮ НБ РС(Я) | F51: 1 | H51: 1
B52: РБС | F52: 1 | H52: 1
B53: ВСЕГО | C53: 967 | D53: 637.4 | E53: 329.6 | F53: =SUM(F49:F52) -> 465 | G53: =SUM(G49:G52) -> 374 | H53: =SUM(H49:H52) -> 467 | I53: =SUM(I49:I52) -> 374
B54: Б-ки КДУ | F54: 40 | G54: 35 | H54: 40 | I54: 35
B55: Итого по РС(Я) | F55: =SUM(F53:F54) -> 505 | G55: =SUM(G53:G54) -> 409 | H55: =SUM(H53:H54) -> 507 | I55: =SUM(I53:I54) -> 409
B56: * - библиотеки, где прошла реорганизация

Sheet т.2
G1: Таблица 2
A2: Количество пользователей и процент охвата населения
A3: библиотечным обслуживанием
A4: № | B4: ЦБС | C4: кол-во пользователей | F4: % охвата населения библ.обслуж.
C5: 2018 | D5: 2019 | E5: "+ -" | F5: 2018 | G5: 2019 | H5: "+ -"
A6: 1 | B6: Абыйская | C6: 3493 | D6: 3203 | E6: =D6-C6 -> -290 | F6: 87 | G6: 80 | H6: =G6-F6 -> -7
A7: 2 | B7: Аллаиховская | C7: 1191 | D7: 1465 | E7: =D7-C7 -> 274 | F7: 44.1 | G7: 54.2 | H7: =G7-F7 -> 10.1
A8: 3 | B8: Амгинская | C8: 12006 | D8: 12007 | E8: 1 | F8: 71.8 | G8: 71.9 | H8: 0.1
A9: 4 | B9: Анабарская | C9: 1947 | D9: 1740 | E9: -207 | F9: 55.6 | G9: 48.3 | H9: -7.3
A10: 5 | B10: Булунская | C10: 7223 | D10: 6795 | E10: -428 | F10: 87 | G10: 81.9 | H10: -5.1
A11: 6 | B11: Верхневилюйская* | C11: 13606 | D11: 13748 | E11: 142 | F11: 67.1 | G11: 65.5 | H11: -1.6
A12: 7 | B12: Верхнеколымская | C12: 3745 | D12: 3985 | E12: 240 | F12: 91.3 | G12: 99 | H12: 7.7
A13: 8 | B13: Верхоянская | C13: 8137 | D13: 8411 | E13: =D13-C13 -> 274 | F13: 71.4 | G13: 75.7 | H13: 4.3
A14: 9 | B14: Вилюйская | C14: 13127 | D14: 12964 | E14: -163 | F14: 52.5 | G14: 51.8 | H14: -0.7
A15: 10 | B15: Горная | C15: 6708 | D15: 6337 | E15: -371 | F15: 68.8 | G15: 66.5 | H15: -2.3
A16: 11 | B16: Жиганская | C16: 3816 | D16: 3915 | E16: 99 | F16: 90.8 | G16: 93.2 | H16: 2.4
A17: 12 | B17: Кобяйская | C17: 10539 | D17: 10546 | E17: 7 | F17: 84.9 | G17: 85.7 | H17: 0.8
A18: 13 | B18: Ленская | C18: 17605 | D18: 17055 | E18: -550 | F18: 47.4 | G18: 46.7 | H18: -0.7
A19: 14 | B19: Момская | C19: 3156 | D19: 3143 | E19: -13 | F19: 76.9 | G19: 78.5 | H19: 1.6
A20: 15 | B20: Намская | C20: 15070 | D20: 15947 | E20: 877 | F20: 61.3 | G20: 64.5 | H20: 3.2
A21: 16 | B21: Нижнеколымская | C21: 3732 | D21: 3842 | E21: 110 | F21: 86.8 | G21: 89.3 | H21: 2.5
A22: 17 | B22: Нюрбинская | C22: 19173 | D22: 19488 | E22: 315 | F22: 79.9 | G22: 82.2 | H22: 2.3
A23: 18 | B23: Оймяконская | C23: 6437 | D23: 6389 | E23: -48 | F23: 75.7 | G23: 77.9 | H23: 2.2
A24: 19 | B24: Олекминская | C24: 15233 | D24: 15067 | E24: -166 | F24: 61.2 | G24: 61 | H24: -0.2
A25: 20 | B25: Оленекская | C25: 2629 | D25: 3193 | E25: 564 | F25: 64.1 | G25: 76 | H25: 11.9
A26: 21 | B26: Среднеколымская | C26: 5520 | D26: 5416 | E26: -104 | F26: 73.6 | G26: 73.2 | H26: -0.4
A27: 22 | B27: Сунтарская | C27: 12594 | D27: 12516 | E27: -78 | F27: 66.5 | G27: 66.8 | H27: 0.3
A28: 23 | B28: Таттинская | C28: 10871 | D28: 10105 | E28: -766 | F28: 66.7 | G28: 62.4 | H28: -4.3
A29: 24 | B29: Томпонская | C29: 7173 | D29: 7376 | E29: 203 | F29: 56 | G29: 59 | H29: 3
A30: 25 | B30: Усть-Алданская | C30: 20001 | D30: 20002 | E30: 1 | F30: 96 | G30: 97 | H30: 1
A31: 26 | B31: Усть-Майская | C31: 5105 | D31: 5382 | E31: 277 | F31: 68 | G31: 72.7 | H31: 4.7
A32: 27 | B32: Усть-Янская | C32: 3908 | D32: 4106 | E32: 198 | F32: 55 | G32: 58.6 | H32: 3.6
A33: 28 | B33: Хангаласская | C33: 18559 | D33: 28597 | E33: 10038 | F33: 56.9 | G33: 87.2 | H33: 30.3
A34: 29 | B34: Чурапчинская | C34: 16301 | D34: 15770 | E34: -531 | F34: 77.2 | G34: 75 | H34: -2.2
A35: 30 | B35: Мирнинская | C35: 23847 | D35: 23850 | E35: 3 | F35: 33 | G35: 32.9 | H35: -0.1
A36: 31 | B36: Нерюнгринская | C36: 13206 | D36: 13208 | E36: 2 | F36: 38 | G36: 30.6 | H36: -7.4
A37: 32 | B37: Эвено-Бытантай | C37: 1434 | D37: 1452 | E37: =D37-C37 -> 18 | F37: 51.2 | G37: 51.8 | H37: =G37-F37 -> 0.6
A38: 33 | B38: Якутская* | C38: 68230 | D38: 69665 | E38: 1435 | F38: 21 | G38: 20.7 | H38: -0.3
A39: 34 | B39: Алданский | C39: 15953 | D39: 15093 | E39: =D39-C39 -> -860 | F39: 40.3 | G39: 39.3 | H39: =G39-F39 -> -1
A40: 35 | B40: М.-Кангаласский | C40: 6125 | D40: 6129 | E40: 4 | F40: 19.8 | G40: 19.8 | H40: =G40-F40 -> 0
A41: 36 | B41: ГБ ГП "г.Нерюнгри" | C41: 14929 | D41: 9278 | E41: -5651
A42: 37 | B42: Сунтарская ДЮПБ | C42: 3100 | D42: 3115 | E42: 15
A43: 38 | B43: Бердигестях ДБ | C43: 1482 | D43: 1643 | E43: 161
A44: 39 | B44: Хоринская Ввил. | C44: 488 | E44: -488
A45: 40 | B45: Б-ка ГО "п. Жатай" | C45: 2730 | D45: 2735 | E45: 5 | F45: 29.5 | G45: 27 | H45: -2.5
B46: Итого по МБ | C46: =SUM(C6:C45) -> 420129 | D46: =SUM(D6:D45) -> 424678 | E46: =SUM(E6:E45) -> 4549 | F46: 43.6 | G46: 43.9 | H46: =G46-F46 -> 0.3
B47: НБ РС(Я) | C47: 31367 | D47: 35698 | E47: =D47-C47 -> 4331
B48: ЦДЮ НБ РС(Я)* | C48: 16034 | D48: 11707 | E48: =D48-C48 -> -4327
B49: РБС | C49: 2000 | D49: 2002 | E49: =D49-C49 -> 2
B50: ВСЕГО | C50: =SUM(C46:C49) -> 469530 | D50: =SUM(D46:D49) -> 474085 | E50: =SUM(E46:E49) -> 4555 | F50: 48.7 | G50: 49 | H50: =G50-F50 -> 0.3
B51: Б-ки КДУ | C51: 21479 | D51: 19071 | E51: =D51-C51 -> -2408
B52: Итого по РС(Я) | C52: =SUM(C50:C51) -> 491009 | D52: =SUM(D50:D51) -> 493156 | E52: =SUM(E50:E51) -> 2147 | F52: 50.9 | G52: 51 | H52: =G52-F52 -> 0.1

Sheet 2.1
G1: Таблица 2.1
A2: Количество пользователей
A4: № | B4: ЦБС | C4: всего | D4: из них | G4: Читаемость
D5: до 14 лет | E5: от 15-30 | F5: удал. польз
A6: 1 | B6: Абыйская | C6: 3203 | D6: 911 | E6: 519 | F6: 589 | G6: 30.7
A7: 2 | B7: Аллаиховская | C7: 1465 | D7: 519 | E7: 251 | F7: 166 | G7: 35
A8: 3 | B8: Амгинская | C8: 12007 | D8: 2691 | E8: 2472 | F8: 2289 | G8: 21.4
A9: 4 | B9: Анабарская | C9: 1740 | D9: 404 | E9: 239 | F9: 395 | G9: 15.7
A10: 5 | B10: Булунская | C10: 6795 | D10: 1717 | E10: 2267 | F10: 876 | G10: 21.9
A11: 6 | B11: Верхневилюйская* | C11: 13748 | D11: 4637 | E11: 3023 | F11: 2117 | G11: 23.5
A12: 7 | B12: Верхнеколымская | C12: 3985 | D12: 1008 | E12: 722 | F12: 674 | G12: 27.2
A13: 8 | B13: Верхоянская | C13: 8411 | D13: 1998 | E13: 1529 | F13: 723 | G13: 22.5
A14: 9 | B14: Вилюйская | C14: 12964 | D14: 3708 | E14: 2648 | F14: 647 | G14: 26.5
A15: 10 | B15: Горная | C15: 6337 | D15: 1349 | E15: 1068 | F15: 927 | G15: 27
A16: 11 | B16: Жиганская | C16: 3915 | D16: 752 | E16: 484 | F16: 357 | G16: 17.2
A17: 12 | B17: Кобяйская | C17: 10546 | D17: 3000 | E17: 2195 | F17: 1208 | G17: 21.2
A18: 13 | B18: Ленская | C18: 17055 | D18: 6274 | E18: 1953 | F18: 5205 | G18: 19.8
A19: 14 | B19: Момская | C19: 3143 | D19: 1103 | E19: 740 | F19: 300 | G19: 15.6
A20: 15 | B20: Намская | C20: 15947 | D20: 4512 | E20: 3096 | F20: 2892 | G20: 23.1
A21: 16 | B21: Нижнеколымская | C21: 3842 | D21: 1301 | E21: 923 | G21: 26
A22: 17 | B22: Нюрбинская | C22: 19488 | D22: 5276 | E22: 3127 | F22: 6498 | G22: 19.4
A23: 18 | B23: Оймяконская | C23: 6389 | D23: 1728 | E23: 1210 | F23: 977 | G23: 15.9
A24: 19 | B24: Олекминская | C24: 15067 | D24: 3896 | E24: 3015 | F24: 926 | G24: 20.1
A25: 20 | B25: Оленекская | C25: 3193 | D25: 1012 | E25: 367 | F25: 454 | G25: 11.4
A26: 21 | B26: Среднеколымская | C26: 5416 | D26: 1053 | E26: 1367 | F26: 1148 | G26: 11.4
A27: 22 | B27: Сунтарская | C27: 12516 | D27: 3209 | E27: 2341 | F27: 1293 | G27: 19.3
A28: 23 | B28: Таттинская | C28: 10105 | D28: 3866 | E28: 1601 | F28: 2386 | G28: 22.8
A29: 24 | B29: Томпонская | C29: 7376 | D29: 2381 | E29: 1290 | F29: 1783 | G29: 21.9
A30: 25 | B30: Усть-Алданская | C30: 20002 | D30: 5088 | E30: 3540 | F30: 6481 | G30: 21
A31: 26 | B31: Усть-Майская | C31: 5382 | D31: 1618 | E31: 1063 | F31: 659 | G31: 28
A32: 27 | B32: Усть-Янская | C32: 4106 | D32: 1319 | E32: 1239 | F32: 368 | G32: 41.7
A33: 28 | B33: Хангаласская | C33: 28597 | D33: 5159 | E33: 2619 | F33: 14351 | G33: 14.6
A34: 29 | B34: Чурапчинская | C34: 15770 | D34: 5383 | E34: 2604 | F34: 1588 | G34: 22.1
A35: 30 | B35: Мирнинская | C35: 23850 | D35: 9301 | E35: 3691 | F35: 847 | G35: 22.7
A36: 31 | B36: Нерюнгринская | C36: 13208 | D36: 4482 | E36: 2891 | F36: 1445 | G36: 22.7
A37: 32 | B37: Эвено-Бытантайская | C37: 1452 | D37: 442 | E37: 148 | F37: 365 | G37: 26.9
A38: 33 | B38: Якутская* | C38: 69665 | D38: 27816 | E38: 14468 | F38: 5329 | G38: 20.1
A39: 34 | B39: Алданский | C39: 15093 | D39: 4761 | E39: 2093 | F39: 1655 | G39: 19.5
A40: 35 | B40: М.-Кангаласский | C40: 6129 | D40: 1537 | E40: 1259 | F40: 1002 | G40: 22.2
A41: 36 | B41: ГБ ГП "г.Нерюнгри " | C41: 9278 | D41: 3553 | E41: 1608 | F41: 1778 | G41: 16.8
A42: 37 | B42: Сунтарская ДЮПБ | C42: 3115 | D42: 2500 | E42: 537 | G42: 16.1
A43: 38 | B43: Бердигестях ДБ | C43: 1643 | D43: 1210 | E43: 51 | F43: 382 | G43: 28.4
A44: 39 | B44: Б-ка ГО "п. Жатай" | C44: 2735 | D44: 1130 | E44: 300 | G44: 20.5
B45: Итого по МБ | C45: =SUM(C6:C44) -> 424678 | D45: =SUM(D6:D44) -> 133604 | E45: =SUM(E6:E44) -> 76558 | F45: =SUM(F6:F44) -> 71080 | G45: 21
B46: НБ РС(Я) | C46: 35698 | E46: 16088 | F46: 10505 | G46: 32.7
B47: ЦДЮ НБ РС(Я) | C47: 11707 | D47: 8009 | E47: 866 | F47: 2216 | G47: 16.5
B48: РБС | C48: 2002 | D48: 245 | E48: 97 | F48: 137 | G48: 41.7
B49: ВСЕГО | C49: =SUM(C45:C48) -> 474085 | D49: =SUM(D45:D48) -> 141858 | E49: =SUM(E45:E48) -> 93609 | F49: =SUM(F45:F48) -> 83938 | G49: 21.8
B50: КДУ | C50: 19071 | D50: 6758 | E50: 2334 | F50: 2557 | G50: 19.7
B51: Итого ПО РС(Я) | C51: =SUM(C49:C50) -> 493156 | D51: =SUM(D49:D50) -> 148616 | E51: =SUM(E49:E50) -> 95943 | F51: =SUM(F49:F50) -> 86495 | G51: 21.7

Sheet т.2.2
E1: Таблица 2.2
B2: Количество пользователей в сельской местности
C3: всего | D3: из них
A4: № | B4: ЦБС | C4: из общего
C5: числа
C6: в с/местн. | D6: до 14 лет | E6: от 15-24 | F6: удал. польз.
A7: 1 | B7: Абыйская | C7: 1357 | D7: 367 | E7: 210 | F7: 153
A8: 2 | B8: Аллаиховская | C8: 305 | D8: 98 | E8: 46 | F8: 17
A9: 3 | B9: Амгинская | C9: 12007 | D9: 2691 | E9: 2472 | F9: 2289
A10: 4 | B10: Анабарская | C10: 1740 | D10: 404 | E10: 239 | F10: 395
A11: 5 | B11: Булунская | C11: 2232 | D11: 605 | E11: 621 | F11: 277
A12: 6 | B12: Верхневилюйская* | C12: 13748 | D12: 4637 | E12: 3023 | F12: 2117
A13: 7 | B13: Верхнеколымская | C13: 1292 | D13: 326 | E13: 134 | F13: 223
A14: 8 | B14: Верхоянская | C14: 3290 | D14: 935 | E14: 688 | F14: 236
A15: 9 | B15: Вилюйская | C15: 6187 | D15: 1764 | E15: 1193 | F15: 355
A16: 10 | B16: Горная | C16: 6337 | D16: 1349 | E16: 1068 | F16: 927
A17: 11 | B17: Жиганская | C17: 3915 | D17: 752 | E17: 484 | F17: 357
A18: 12 | B18: Кобяйская | C18: 5953 | D18: 1696 | E18: 860 | F18: 672
A19: 13 | B19: Ленская | C19: 2630 | D19: 1053 | E19: 343 | F19: 291
A20: 14 | B20: Момская | C20: 3143 | D20: 1103 | E20: 740 | F20: 300
A21: 15 | B21: Намская | C21: 15947 | D21: 4512 | E21: 3096 | F21: 2892
A22: 16 | B22: Нижнеколымская | C22: 909 | D22: 292 | E22: 279
A23: 17 | B23: Нюрбинская | C23: 11451 | D23: 3258 | E23: 1812 | F23: 3709
A24: 18 | B24: Оймяконская | C24: 2221 | D24: 582 | E24: 457 | F24: 311
A25: 19 | B25: Олекминская | C25: 8457 | D25: 2164 | E25: 1355 | F25: 872
A26: 20 | B26: Оленекская | C26: 3193 | D26: 1012 | E26: 367 | F26: 454
A27: 21 | B27: Среднеколымская | C27: 2625 | D27: 502 | E27: 716 | F27: 94
A28: 22 | B28: Сунтарская | C28: 12516 | D28: 3209 | E28: 2341 | F28: 1293
A29: 23 | B29: Таттинская | C29: 10105 | D29: 3866 | E29: 1601 | F29: 2386
A30: 24 | B30: Томпонская | C30: 3462 | D30: 1049 | E30: 634 | F30: 814
A31: 25 | B31: Усть-Алданская | C31: 20002 | D31: 5088 | E31: 3540 | F31: 6481
A32: 26 | B32: Усть-Майская | C32: 1254 | D32: 452 | E32: 183 | F32: 2
A33: 27 | B33: Усть-Янская | C33: 2139 | D33: 694 | E33: 651 | F33: 174
A34: 28 | B34: Хангаласская | C34: 10776 | D34: 2338 | E34: 1515 | F34: 2808
A35: 29 | B35: Чурапчинская | C35: 15770 | D35: 5383 | E35: 2604 | F35: 1588
A36: 30 | B36: Мирнинская | C36: 802 | D36: 309 | E36: 154 | F36: 58
A37: 31 | B37: Нерюнгринская | C37: 864 | D37: 236 | E37: 118 | F37: 133
A38: 32 | B38: Эвено-Бытантайская | C38: 1452 | D38: 442 | E38: 148 | F38: 365
A39: 33 | B39: Якутская* | C39: 7339 | D39: 3044 | E39: 1354 | F39: 32
A40: 34 | B40: Алданский | C40: 232 | D40: 56 | E40: 34 | F40: 17
A41: 35 | B41: М.-Кангаласский | C41: 6129 | D41: 1537 | E41: 1259 | F41: 1002
A42: 36 | B42: Сунтарская ДЮПБ | C42: 3115 | D42: 2500 | E42: 537
A43: 37 | B43: Бердигестях ДБ | C43: 1643 | D43: 1210 | E43: 51 | F43: 382
B44: Итого по МБ | C44: =SUM(C7:C43) -> 206539 | D44: =SUM(D7:D43) -> 61515 | E44: =SUM(E7:E43) -> 36927 | F44: =SUM(F7:F43) -> 34476
B45: КДУ | C45: 15280 | D45: 5069 | E45: 1808 | F45: 2290
B46: Итого по РС(Я) | C46: =SUM(C44:C45) -> 221819 | D46: =SUM(D44:D45) -> 66584 | E46: =SUM(E44:E45) -> 38735 | F46: =SUM(F44:F45) -> 36766

Sheet т.3
G1: Таблица 3
A2: Число посещений. Посещаемость
A3: № | B3: ЦБС | C3: Число посещений | F3: Посещаемость
C4: 2018 | D4: 2019 | E4: "+ -" | F4: 2018 | G4: 2019 | H4: "+ -"
A5: 1 | B5: Абыйская | C5: 36484 | D5: 37674 | E5: =D5-C5 -> 1190 | F5: 10.4 | G5: =т.3!D5/т.2!D6 -> 11.76209803 | H5: =G5 - F5 -> 1.362098033
A6: 2 | B6: Аллаиховская | C6: 10898 | D6: 11961 | E6: =D6-C6 -> 1063 | F6: 9.1 | G6: =т.3!D6/т.2!D7 -> 8.164505119 | H6: -0.9354948805
A7: 3 | B7: Амгинская | C7: 103006 | D7: 105425 | E7: 2419 | F7: 8.6 | G7: =т.3!D7/т.2!D8 -> 8.780294828 | H7: 0.180294828
A8: 4 | B8: Анабарская | C8: 10012 | D8: 11550 | E8: 1538 | F8: 5.1 | G8: =т.3!D8/т.2!D9 -> 6.637931034 | H8: 1.537931034
A9: 5 | B9: Булунская | C9: 61723 | D9: 71374 | E9: 9651 | F9: 8.6 | G9: =т.3!D9/т.2!D10 -> 10.50389993 | H9: 1.903899926
A10: 6 | B10: Верхневилюйская* | C10: 126087 | D10: 133110 | E10: 7023 | F10: 9.3 | G10: =т.3!D10/т.2!D11 -> 9.682135583 | H10: 0.3821355834
A11: 7 | B11: Верхнеколымская | C11: 34133 | D11: 35916 | E11: 1783 | F11: 9.1 | G11: =т.3!D11/т.2!D12 -> 9.012797992 | H11: -0.08720200753
A12: 8 | B12: Верхоянская | C12: 74863 | D12: 74364 | E12: -499 | F12: 9.2 | G12: =т.3!D12/т.2!D13 -> 8.841279277 | H12: -0.3587207229
A13: 9 | B13: Вилюйская | C13: 139079 | D13: 146866 | E13: 7787 | F13: 10.6 | G13: =т.3!D13/т.2!D14 -> 11.32875656 | H13: 0.7287565566
A14: 10 | B14: Горная | C14: 77265 | D14: 70776 | E14: -6489 | F14: 11.5 | G14: =т.3!D14/т.2!D15 -> 11.16869181 | H14: -0.33130819
A15: 11 | B15: Жиганская | C15: 31542 | D15: 32486 | E15: 944 | F15: 8.3 | G15: =т.3!D15/т.2!D16 -> 8.297828863 | H15: -0.002171136654
A16: 12 | B16: Кобяйская | C16: 125868 | D16: 126434 | E16: 566 | F16: 11.9 | G16: =т.3!D16/т.2!D17 -> 11.98881092 | H16: 0.08881092357
A17: 13 | B17: Ленская | C17: 134849 | D17: 147819 | E17: 12970 | F17: 7.7 | G17: =т.3!D17/т.2!D18 -> 8.667194371 | H17: 0.9671943712
A18: 14 | B18: Момская | C18: 29695 | D18: 29262 | E18: -433 | F18: 9.4 | G18: =т.3!D18/т.2!D19 -> 9.310213172 | H18: -0.08978682787
A19: 15 | B19: Намская | C19: 140418 | D19: 153267 | E19: 12849 | F19: 9.3 | G19: =т.3!D19/т.2!D20 -> 9.611024017 | H19: 0.3110240171
A20: 16 | B20: Нижнеколымская | C20: 36020 | D20: 39741 | E20: 3721 | F20: 9.7 | G20: =т.3!D20/т.2!D21 -> 10.34383134 | H20: 0.6438313378
A21: 17 | B21: Нюрбинская* | C21: 132963 | D21: 148548 | E21: 15585 | F21: 6.9 | G21: =т.3!D21/т.2!D22 -> 7.622536946 | H21: 0.7225369458
A22: 18 | B22: Оймяконская | C22: 54965 | D22: 55569 | E22: 604 | F22: 8.5 | G22: =т.3!D22/т.2!D23 -> 8.697605259 | H22: 0.197605259
A23: 19 | B23: Олекминская | C23: 148513 | D23: 156599 | E23: 8086 | F23: 9.7 | G23: =т.3!D23/т.2!D24 -> 10.39350899 | H23: 0.6935089932
A24: 20 | B24: Оленекская | C24: 21496 | D24: 23086 | E24: 1590 | F24: 8.2 | G24: =т.3!D24/т.2!D25 -> 7.230191043 | H24: -0.9698089571
A25: 21 | B25: Среднеколымская | C25: 38381 | D25: 41325 | E25: 2944 | F25: 7 | G25: =т.3!D25/т.2!D26 -> 7.630169867 | H25: 0.6301698671
A26: 22 | B26: Сунтарская | C26: 124892 | D26: 121204 | E26: -3688 | F26: 9.9 | G26: =т.3!D26/т.2!D27 -> 9.683924577 | H26: -0.2160754235
A27: 23 | B27: Таттинская | C27: 100641 | D27: 96573 | E27: -4068 | F27: 9.3 | G27: =т.3!D27/т.2!D28 -> 9.556952004 | H27: 0.256952004
A28: 24 | B28: Томпонская | C28: 71748 | D28: 67998 | E28: -3750 | F28: 10 | G28: =т.3!D28/т.2!D29 -> 9.218817787 | H28: -0.7811822126
A29: 25 | B29: Усть-Алданская | C29: 205716 | D29: 205316 | E29: -400 | F29: 10.3 | G29: =т.3!D29/т.2!D30 -> 10.26477352 | H29: -0.03522647735
A30: 26 | B30: Усть-Майская | C30: 62697 | D30: 70288 | E30: 7591 | F30: 12.3 | G30: =т.3!D30/т.2!D31 -> 13.05982906 | H30: 0.7598290598
A31: 27 | B31: Усть-Янская | C31: 48995 | D31: 51261 | E31: 2266 | F31: 12.5 | G31: =т.3!D31/т.2!D32 -> 12.48441305 | H31: -0.01558694593
A32: 28 | B32: Хангаласская | C32: 179185 | D32: 178738 | E32: -447 | F32: 9.6 | G32: =т.3!D32/т.2!D33 -> 6.250236039 | H32: -3.349763961
A33: 29 | B33: Чурапчинская | C33: 133397 | D33: 147693 | E33: 14296 | F33: 8.2 | G33: =т.3!D33/т.2!D34 -> 9.36544071 | H33: 1.16544071
A34: 30 | B34: Мирнинская | C34: 174425 | D34: 177904 | E34: 3479 | F34: 7.3 | G34: =т.3!D34/т.2!D35 -> 7.459287212 | H34: 0.1592872117
A35: 31 | B35: Нерюнгринская | C35: 116693 | D35: 116325 | E35: -368 | F35: 8.8 | G35: =т.3!D35/т.2!D36 -> 8.807162326 | H35: 0.007162325863
A36: 32 | B36: Эвено-Бытантай | C36: 16677 | D36: 17452 | E36: 775 | F36: 11.6 | G36: =т.3!D36/т.2!D37 -> 12.01928375 | H36: 0.4192837466
A37: 33 | B37: Якутская* | C37: 482481 | D37: 506017 | E37: 23536 | F37: 7.1 | G37: =т.3!D37/т.2!D38 -> 7.263575684 | H37: 0.1635756836
A38: 34 | B38: Алданский | C38: 128731 | D38: 132380 | E38: =D38-C38 -> 3649 | F38: 8.1 | G38: =т.3!D38/т.2!D39 -> 8.770953422 | H38: =G38 - F38 -> 0.6709534221
A39: 35 | B39: М.-Кангаласский | C39: 60011 | D39: 61334 | E39: =D39-C39 -> 1323 | F39: 9.8 | G39: =т.3!D39/т.2!D40 -> 10.00717899 | H39: =G39 - F39 -> 0.2071789852
A40: 36 | B40: ГБ ГП "г.Нерюнгри " | C40: 94355 | D40: 94252 | E40: -103 | F40: 6.3 | G40: =т.3!D40/т.2!D41 -> 10.15865488 | H40: 3.858654883
A41: 37 | B41: Сунтарская ДЮПБ | C41: 26366 | D41: 27269 | E41: 903 | F41: 8.5 | G41: =т.3!D41/т.2!D42 -> 8.754093098 | H41: 0.2540930979
A42: 38 | B42: Бердигестях ДБ* | C42: 15144 | D42: 15164 | E42: 20 | F42: 10.2 | G42: =т.3!D42/т.2!D43 -> 9.229458308 | H42: -0.970541692
A43: 39 | B43: Хоринская Ввил. | C43: 5680 | E43: -5680 | F43: 11.6 | H43: -11.6
A44: 40 | B44: Б-ка ГО "п. Жатай" | C44: 20420 | D44: 20823 | E44: 403 | F44: 7.5 | G44: =т.3!D44/т.2!D45 -> 7.613528336 | H44: 0.1135283364
B45: Итого по МБ | C45: =SUM(C5:C44) -> 3636514 | D45: =SUM(D5:D44) -> 3761143 | E45: 124629 | F45: 8.7 | G45: =т.3!D45/т.2!D46 -> 8.856458305 | H45: 0.1564583049
B46: НБ РС(Я) | C46: 173169 | D46: 223484 | E46: 50315 | F46: 5.5 | G46: =т.3!D46/т.2!D47 -> 6.260406745 | H46: 0.7604067455
B47: ЦДЮ НБ РС(Я) | C47: 95752 | D47: 70662 | E47: -25090 | F47: 6 | G47: =т.3!D47/т.2!D48 -> 6.035875972 | H47: 0.03587597164
B48: РБС | C48: 7636 | D48: 12291 | E48: 4655 | F48: 3.8 | G48: =т.3!D48/т.2!D49 -> 6.139360639 | H48: 2.339360639
B49: ВСЕГО | C49: =SUM(C45:C48) -> 3913071 | D49: =SUM(D45:D48) -> 4067580 | E49: =SUM(E45:E48) -> 154509 | F49: 8.3 | G49: =т.3!D49/т.2!D50 -> 8.579853824 | H49: =G49-F49 -> 0.2798538237
B50: КДУ | C50: 174688 | D50: 175512 | E50: =D50-C50 -> 824 | F50: 8.1 | G50: =т.3!D50/т.2!D51 -> 9.203083215 | H50: =G50-F50 -> 1.103083215
B51: Итого по РС(Я) | C51: =SUM(C49:C50) -> 4087759 | D51: =SUM(D49:D50) -> 4243092 | E51: =D51-C51 -> 155333 | F51: 8.3 | G51: =т.3!D51/т.2!D52 -> 8.603954935 | H51: =G51-F51 -> 0.3039549352

Sheet т.4
F1: Таблица 4.
A2: Движение библиотечного фонда .
C3: Сост. на | D3: Поступило | E3: Выбыло | F3: Сост. на
A4: № | B4: ЦБС | C4: 2019-01-01 | D4: (экз) | E4: (экз.) | F4: 2020-01-01
A5: 1 | B5: Абыйская | C5: 84957 | D5: 2063 | E5: 4174 | F5: =C5+D5-E5 -> 82846
A6: 2 | B6: Аллаиховская | C6: 76416 | D6: 1019 | E6: 1148 | F6: =C6+D6-E6 -> 76287
A7: 3 | B7: Амгинская | C7: 190904 | D7: 8685 | E7: 8679 | F7: 190910
A8: 4 | B8: Анабарская | C8: 24534 | D8: 560 | E8: 1718 | F8: 23376
A9: 5 | B9: Булунская | C9: 144950 | D9: 1532 | E9: 1102 | F9: 145380
A10: 6 | B10: Верхневилюйская* | C10: 224167 | D10: 16901 | E10: 7002 | F10: 234066
A11: 7 | B11: Верхнеколымская | C11: 108027 | D11: 4650 | E11: 2397 | F11: 110280
A12: 8 | B12: Верхоянская | C12: 209455 | D12: 9011 | E12: 4278 | F12: 214188
A13: 9 | B13: Вилюйская | C13: 267125 | D13: 6492 | E13: 9924 | F13: 263693
A14: 10 | B14: Горная | C14: 104493 | D14: 3607 | E14: 9064 | F14: 99036
A15: 11 | B15: Жиганская | C15: 52222 | D15: 2785 | E15: 251 | F15: 54756
A16: 12 | B16: Кобяйская | C16: 194704 | D16: 5851 | E16: 6105 | F16: 194450
A17: 13 | B17: Ленская | C17: 196898 | D17: 13615 | E17: 10018 | F17: 200495
A18: 14 | B18: Момская | C18: 90485 | D18: 1111 | E18: 5220 | F18: 86376
A19: 15 | B19: Намская | C19: 220469 | D19: 13891 | E19: 17407 | F19: 216953
A20: 16 | B20: Нижнеколымская | C20: 98956 | D20: 2233 | E20: 1433 | F20: 99756
A21: 17 | B21: Нюрбинская | C21: 323639 | D21: 5050 | E21: 1440 | F21: 327249
A22: 18 | B22: Оймяконская | C22: 116343 | D22: 1555 | E22: 144 | F22: 117754
A23: 19 | B23: Олекминская | C23: 280039 | D23: 11027 | E23: 8475 | F23: 282591
A24: 20 | B24: Оленекская | C24: 77093 | D24: 1506 | E24: 579 | F24: 78020
A25: 21 | B25: Среднеколымская | C25: 120081 | D25: 4864 | E25: 2817 | F25: 122128
A26: 22 | B26: Сунтарская | C26: 193920 | D26: 11004 | E26: 4524 | F26: 200400
A27: 23 | B27: Таттинская | C27: 208430 | D27: 8804 | E27: 6440 | F27: 210794
A28: 24 | B28: Томпонская | C28: 179303 | D28: 5791 | E28: 7481 | F28: 177613
A29: 25 | B29: Усть-Алданская | C29: 404748 | D29: 21876 | E29: 12755 | F29: 413869
A30: 26 | B30: Усть-Майская | C30: 129739 | D30: 4110 | E30: 5632 | F30: 128217
A31: 27 | B31: Усть-Янская | C31: 168616 | D31: 1122 | E31: 50 | F31: 169688
A32: 28 | B32: Хангаласская | C32: 344682 | D32: 12138 | E32: 17179 | F32: 339641
A33: 29 | B33: Чурапчинская | C33: 267463 | D33: 8552 | E33: 5647 | F33: 270368
A34: 30 | B34: Мирнинская | C34: 250919 | D34: 8989 | E34: 16259 | F34: 243649
A35: 31 | B35: Нерюнгринская | C35: 139588 | D35: 5092 | E35: 3664 | F35: 141016
A36: 32 | B36: Эвено-Бытантайская | C36: 41786 | D36: 588 | E36: 32 | F36: 42342
A37: 33 | B37: Якутская* | C37: 445048 | D37: 39545 | E37: 32713 | F37: =C37+D37-E37 -> 451880
A38: 34 | B38: Алданский | C38: 129385 | D38: 22586 | E38: 22891 | F38: =C38+D38-E38 -> 129080
A39: 35 | B39: Мегино-Кангаласский | C39: 104388 | D39: 1457 | E39: 1651 | F39: =C39+D39-E39 -> 104194
A40: 36 | B40: ГБ ГП "г.Нерюнгри " | C40: 122424 | D40: 4265 | E40: 11373 | F40: 115316
A41: 37 | B41: Сунтарская ДЮПБ | C41: 49550 | D41: 1166 | E41: 360 | F41: 50356
A42: 38 | B42: Бердигестях ДБ | C42: 14008 | D42: 1521 | E42: 85 | F42: 15444
A43: 39 | B43: Хоринская Ввил. | C43: 8127
A44: 40 | B44: Б-ка ГО "п. Жатай" | C44: 20576 | D44: 233 | E44: 206 | F44: 20603
B45: Итого по МБ | C45: =SUM(C5:C44) -> 6428657 | D45: =SUM(D5:D44) -> 276847 | E45: =SUM(E5:E44) -> 252317 | F45: =SUM(F5:F44) -> 6445060
B46: НБ РС(Я) | C46: 1621027 | D46: 21121 | E46: 8637 | F46: =C46+D46-E46 -> 1633511
B47: ЦДЮ НБ РС(Я) | C47: 222069 | D47: 6249 | E47: 61202 | F47: =C47+D47-E47 -> 167116
B48: РБС | C48: 134596 | D48: 6310 | E48: 927 | F48: =C48+D48-E48 -> 139979
B49: ВСЕГО | C49: =SUM(C45:C48) -> 8406349 | D49: =SUM(D45:D48) -> 310527 | E49: =SUM(E45:E48) -> 323083 | F49: =SUM(F45:F48) -> 8385666
B50: КДУ | C50: 432497 | D50: 10087 | E50: 10678 | F50: =C50+D50-E50 -> 431906
B51: Итого по РС(Я) | C51: =SUM(C49:C50) -> 8838846 | D51: =SUM(D49:D50) -> 320614 | E51: =SUM(E49:E50) -> 333761 | F51: =SUM(F49:F50) -> 8817572

Sheet т.4.1
G1: Таблица 4.1
A2: Библиотечный фонд
A4: № | B4: ЦБС | C4: 2018 | D4: 2019 | E4: "+ -" | F4: в городе | G4: в сельск.местн.
A5: 1 | B5: Абыйская | C5: 84957 | D5: 82846 | E5: =D5-C5 -> -2111 | F5: =D5-G5 -> 37315 | G5: 45531
A6: 2 | B6: Аллаиховская | C6: 76416 | D6: 76287 | E6: =D6-C6 -> -129 | F6: =D6-G6 -> 47526 | G6: 28761
A7: 3 | B7: Амгинская | C7: 190904 | D7: 190910 | E7: 6 | F7: =D7-G7 -> 0 | G7: 190910
A8: 4 | B8: Анабарская | C8: 24534 | D8: 23376 | E8: -1158 | F8: 0 | G8: 23376
A9: 5 | B9: Булунская | C9: 144950 | D9: 145380 | E9: 430 | F9: 67257 | G9: 78123
A10: 6 | B10: Верхневилюйская* | C10: 224167 | D10: 234066 | E10: 9899 | F10: 0 | G10: 234066
A11: 7 | B11: Верхнеколымская | C11: 108027 | D11: 110280 | E11: 2253 | F11: 64346 | G11: 45934
A12: 8 | B12: Верхоянская | C12: 209455 | D12: 214188 | E12: 4733 | F12: 93248 | G12: 120940
A13: 9 | B13: Вилюйская | C13: 267125 | D13: 263693 | E13: -3432 | F13: 86485 | G13: 177208
A14: 10 | B14: Горная | C14: 104493 | D14: 99036 | E14: -5457 | F14: 0 | G14: 99036
A15: 11 | B15: Жиганская | C15: 52222 | D15: 54756 | E15: 2534 | F15: 0 | G15: 54756
A16: 12 | B16: Кобяйская | C16: 194704 | D16: 194450 | E16: -254 | F16: 48030 | G16: 146420
A17: 13 | B17: Ленская | C17: 196898 | D17: 200495 | E17: 3597 | F17: 115657 | G17: 84838
A18: 14 | B18: Момская | C18: 90485 | D18: 86376 | E18: -4109 | F18: 0 | G18: 86376
A19: 15 | B19: Намская | C19: 220469 | D19: 216953 | E19: -3516 | F19: 0 | G19: 216953
A20: 16 | B20: Нижнеколымская | C20: 98956 | D20: 99756 | E20: 800 | F20: 69225 | G20: 30531
A21: 17 | B21: Нюрбинская | C21: 323639 | D21: 327249 | E21: 3610 | F21: 87791 | G21: 239458
A22: 18 | B22: Оймяконская | C22: 116343 | D22: 117754 | E22: 1411 | F22: 43954 | G22: 73800
A23: 19 | B23: Олекминская | C23: 280039 | D23: 282591 | E23: 2552 | F23: 67702 | G23: 214889
A24: 20 | B24: Оленекская | C24: 77093 | D24: 78020 | E24: 927 | F24: 0 | G24: 78020
A25: 21 | B25: Среднеколымская | C25: 120081 | D25: 122128 | E25: 2047 | F25: 51532 | G25: 70596
A26: 22 | B26: Сунтарская | C26: 193920 | D26: 200400 | E26: 6480 | F26: 0 | G26: 200400
A27: 23 | B27: Таттинская | C27: 208430 | D27: 210794 | E27: 2364 | F27: 0 | G27: 210794
A28: 24 | B28: Томпонская | C28: 179303 | D28: 177613 | E28: -1690 | F28: 73899 | G28: 103714
A29: 25 | B29: Усть-Алданская | C29: 404748 | D29: 413869 | E29: 9121 | F29: 0 | G29: 413869
A30: 26 | B30: Усть-Майская | C30: 129739 | D30: 128217 | E30: -1522 | F30: 83937 | G30: 44280
A31: 27 | B31: Усть-Янская | C31: 168616 | D31: 169688 | E31: 1072 | F31: 83698 | G31: 85990
A32: 28 | B32: Хангаласская | C32: 344682 | D32: 339641 | E32: -5041 | F32: 123420 | G32: 216221
A33: 29 | B33: Чурапчинская | C33: 267463 | D33: 270368 | E33: 2905 | F33: 0 | G33: 270368
A34: 30 | B34: Мирнинская | C34: 250919 | D34: 243649 | E34: -7270 | F34: 200821 | G34: 42828
A35: 31 | B35: Нерюнгринская | C35: 139588 | D35: 141016 | E35: 1428 | F35: 118983 | G35: 22033
A36: 32 | B36: Эвено-Бытантайская | C36: 41786 | D36: 42342 | E36: 556 | F36: 0 | G36: 42342
A37: 33 | B37: Якутская* | C37: 445048 | D37: 451880 | E37: =D37-C37 -> 6832 | F37: =D37-G37 -> 392125 | G37: 59755
A38: 34 | B38: Алданский | C38: 129385 | D38: 129080 | E38: =D38-C38 -> -305 | F38: =D38-G38 -> 116851 | G38: 12229
A39: 35 | B39: Мегино-Кангаласский | C39: 104388 | D39: 104194 | E39: =D39-C39 -> -194 | F39: 0 | G39: 104194
A40: 36 | B40: ГБ ГП "г.Нерюнгри " | C40: 122424 | D40: 115316 | E40: -7108 | F40: 115316 | G40: 0
A41: 37 | B41: Сунтарская ДЮПБ | C41: 49550 | D41: 50356 | E41: 806 | F41: 0 | G41: 50356
A42: 38 | B42: Бердигестях ДБ | C42: 14008 | D42: 15444 | G42: 15444
A43: 39 | B43: Хоринская Ввил. | C43: 8127 | E43: -8127 | F43: 0
A44: 40 | B44: Б-ка ГО "п. Жатай" | C44: 20576 | D44: 20603 | E44: =D44-C44 -> 27 | F44: 20576 | G44: 0
B45: Итого по МБ | C45: =SUM(C5:C44) -> 6428657 | D45: =SUM(D5:D44) -> 6445060 | E45: 16403 | F45: =SUM(F5:F44) -> 2209694 | G45: =SUM(G5:G44) -> 4235339
B46: НБ РС(Я) | C46: 1621027 | D46: 1633511 | E46: 12484 | F46: 1633511 | G46: 0
B47: ЦДЮ НБ РС(Я) | C47: 222069 | D47: 167116 | E47: -54953 | F47: 167116 | G47: 0
B48: РБС | C48: 134596 | D48: 139979 | E48: 5383 | F48: 139979 | G48: 0
B49: ВСЕГО | C49: =SUM(C45:C48) -> 8406349 | D49: =SUM(D45:D48) -> 8385666 | E49: -20683 | F49: =SUM(F45:F48) -> 4150300 | G49: =SUM(G45:G48) -> 4235339
B50: КДУ | C50: 432497 | D50: 431906 | E50: =D50-C50 -> -591 | F50: =D50-G50 -> 41761 | G50: 390145
B51: Итого по РС(Я) | C51: =SUM(C49:C50) -> 8838846 | D51: =SUM(D49:D50) -> 8817572 | E51: =SUM(E49:E50) -> -21274 | F51: =SUM(F49:F50) -> 4192061 | G51: =SUM(G49:G50) -> 4625484

Sheet т.4.2
J1: Таблица 4.2
A2: Поступление в библиотечный фонд (экз.)
E3: в том числе | I3: спец. | J3: на яз. | K3: на
A4: № | B4: ЦБС | C4: 2018 | D4: 2019 | E4: печ.изд. | F4: из них | G4: эл.док. | H4: док. на | J4: нар.РФ | K4: иностр. | L4: "+ -"
E5: неопуб. | F5: книг | G5: съемн | H5: др.вид. | I5: док. | J5: кр.рус.яз. | K5: яз.
A6: 1 | B6: Абыйская | C6: 1797 | D6: 2063 | E6: 2063 | F6: 1093 | J6: 541 | L6: =D6-C6 -> 266
A7: 2 | B7: Аллаиховская | C7: 1719 | D7: 1019 | E7: 1019 | F7: 799 | J7: 340 | L7: -700
A8: 3 | B8: Амгинская | C8: 11384 | D8: 8685 | E8: 8604 | F8: 3233 | G8: 81 | I8: 12 | J8: 2220 | L8: -2699
A9: 4 | B9: Анабарская | C9: 1091 | D9: 560 | E9: 560 | F9: 501 | J9: 214 | L9: -531
A10: 5 | B10: Булунская | C10: 1960 | D10: 1532 | E10: 1532 | F10: 1268 | J10: 343 | K10: 1 | L10: -428
A11: 6 | B11: Верхневилюйская* | C11: 15744 | D11: 16901 | E11: 16892 | F11: 10957 | G11: 4 | H11: 5 | J11: 6705 | K11: 1 | L11: 1157
A12: 7 | B12: Верхнеколымская | C12: 3345 | D12: 4650 | E12: 4650 | F12: 1884 | I12: 12 | J12: 204 | L12: 1305
A13: 8 | B13: Верхоянская | C13: 10536 | D13: 9011 | E13: 9004 | F13: 4462 | G13: 7 | J13: 2728 | K13: 3 | L13: -1525
A14: 9 | B14: Вилюйская | C14: 6081 | D14: 6492 | E14: 6427 | F14: 5900 | G14: 65 | J14: 2810 | L14: 411
A15: 10 | B15: Горная | C15: 2706 | D15: 3607 | E15: 3607 | F15: 2885 | J15: 1316 | L15: 901
A16: 11 | B16: Жиганская | C16: 2601 | D16: 2785 | E16: 2785 | F16: 1564 | L16: 184
A17: 12 | B17: Кобяйская | C17: 6251 | D17: 5851 | E17: 5851 | F17: 2534 | J17: 1940 | L17: -400
A18: 13 | B18: Ленская | C18: 17674 | D18: 13615 | E18: 13615 | F18: 6883 | J18: 580 | L18: -4059
A19: 14 | B19: Момская | C19: 2083 | D19: 1111 | E19: 1111 | F19: 669 | J19: 512 | L19: -972
A20: 15 | B20: Намская | C20: 12470 | D20: 13891 | E20: 13870 | F20: 7657 | G20: 21 | J20: 2779 | L20: 1421
A21: 16 | B21: Нижнеколымская | C21: 3539 | D21: 2233 | E21: 2233 | F21: 859 | J21: 515 | L21: -1306
A22: 17 | B22: Нюрбинская | C22: 12455 | D22: 5050 | E22: 4969 | F22: 4082 | G22: 81 | J22: 2167 | L22: -7405
A23: 18 | B23: Оймяконская | C23: 2537 | D23: 1555 | E23: 1555 | J23: 646 | L23: -982
A24: 19 | B24: Олекминская | C24: 16085 | D24: 11027 | E24: 11027 | F24: 8982 | J24: 1774 | K24: 3 | L24: -5058
A25: 20 | B25: Оленекская | C25: 1252 | D25: 1506 | E25: 1506 | F25: 1506 | J25: 221 | L25: 254
A26: 21 | B26: Среднеколымская | C26: 5408 | D26: 4864 | E26: 4864 | F26: 2377 | J26: 1364 | L26: -544
A27: 22 | B27: Сунтарская | C27: 11256 | D27: 11004 | E27: 10994 | F27: 8910 | G27: 10 | J27: 2743 | K27: 2 | L27: -252
A28: 23 | B28: Таттинская | C28: 10463 | D28: 8804 | E28: 8751 | F28: 4973 | G28: 53 | J28: 3254 | K28: 2 | L28: -1659
A29: 24 | B29: Томпонская | C29: 5210 | D29: 5791 | E29: 5787 | F29: 2844 | G29: 4 | J29: 1900 | L29: 581
A30: 25 | B30: Усть-Алданская | C30: 44771 | D30: 21876 | E30: 21852 | F30: 9451 | G30: 24 | J30: 6315 | K30: 4 | L30: -22895
A31: 26 | B31: Усть-Майская | C31: 5482 | D31: 4110 | E31: 4110 | F31: 1872 | J31: 214 | L31: -1372
A32: 27 | B32: Усть-Янская | C32: 2311 | D32: 1122 | E32: 1122 | F32: 603 | L32: -1189
A33: 28 | B33: Хангаласская | C33: 11487 | D33: 12138 | E33: 12138 | F33: 7108 | J33: 3643 | K33: 11 | L33: 651
A34: 29 | B34: Чурапчинская | C34: 8130 | D34: 8552 | E34: 8552 | F34: 4229 | J34: 3248 | L34: 422
A35: 30 | B35: Мирнинская | C35: 11700 | D35: 8989 | E35: 8989 | F35: 2998 | J35: 808 | K35: 2 | L35: -2711
A36: 31 | B36: Нерюнгринская | C36: 3462 | D36: 5092 | E36: 5046 | F36: 3517 | G36: 46 | J36: 531 | L36: 1630
A37: 32 | B37: Эвено-Бытантайская | C37: 617 | D37: 588 | E37: 588 | F37: 400 | J37: 154 | L37: -29
A38: 33 | B38: Якутская* | C38: 24839 | D38: 39545 | E38: 39499 | F38: 23661 | G38: 46 | J38: 4907 | K38: 26 | L38: =D38-C38 -> 14706
A39: 34 | B39: Алданский | C39: 15798 | D39: 22586 | E39: 21941 | F39: 15263 | G39: 614 | H39: 31 | J39: 322 | K39: 11 | L39: =D39-C39 -> 6788
A40: 35 | B40: Мегино-Кангаласский | C40: 2854 | D40: 1457 | E40: 1457 | F40: 1218 | J40: 539 | L40: =D40-C40 -> -1397
A41: 36 | B41: ГБ ГП "г.Нерюнгри " | C41: 4276 | D41: 4265 | E41: 4264 | F41: 2686 | G41: 1 | J41: 174 | K41: 2 | L41: -11
A42: 37 | B42: Сунтарская ДЮПБ | C42: 1259 | D42: 1166 | E42: 1166 | F42: 1094 | L42: -93
A43: 38 | B43: Бердигестях ДБ | C43: 505 | D43: 1521 | E43: 1519 | F43: 855 | G43: 2 | J43: 347 | L43: 1016
A44: 39 | B44: Хоринская Ввил. | C44: 78 | L44: -78
A45: 40 | B45: Б-ка ГО "п. Жатай" | C45: 327 | D45: 233 | E45: 233 | F45: 233 | J45: 49 | L45: =D45-C45 -> -94
B46: Итого по МБ | C46: =SUM(C6:C45) -> 303543 | D46: 276847 | E46: 275752 | F46: 162010 | G46: 1059 | H46: 36 | I46: 24 | J46: 59067 | K46: 68 | L46: -26696
B47: НБ РС(Я) | C47: 21186 | D47: 21121 | E47: 21117 | F47: 20491 | G47: 4 | J47: 3433 | K47: 657 | L47: -65
B48: ЦДЮ НБ РС(Я) | C48: 6233 | D48: 6249 | E48: 6247 | F48: 2930 | G48: 2 | L48: 16
B49: РБС | C49: 7228 | D49: 6310 | E49: 1432 | F49: 853 | G49: 2444 | H49: 2434 | I49: 5852 | J49: 577 | L49: -918
B50: ВСЕГО | C50: =SUM(C46:C49) -> 338190 | D50: =SUM(D46:D49) -> 310527 | E50: 304548 | F50: =SUM(F46:F49) -> 186284 | G50: 3509 | H50: =SUM(H46:H49) -> 2470 | I50: =SUM(I46:I49) -> 5876 | J50: 63077 | K50: =SUM(K44:K49) -> 725 | L50: -27663

Sheet т.5
F1: Таблица 5
A2: Относительные показатели библиотек республики
A4: № | B4: ЦБС | C4: Документообесп. жителей | D4: Документообесп. польз. | E4: Обращаемость библ.фонда | F4: Обновляемость библ.фонда
A5: 1 | B5: Абыйская | C5: =(т.4!F5/т.1!C9)/1000 -> 20.7115 | D5: ='т.4.1'!D5/т.2!D6 -> 25.86512644 | E5: =т.6!D5/'т.4.1'!D5 -> 1.189435821 | F5: ='[1]т.4.2'!D6/'т.4.1'!D5*100 -> 2.169084808
A6: 2 | B6: Аллаиховская | C6: =(т.4!F6/т.1!C10)/1000 -> 28.25444444 | D6: ='т.4.1'!D6/т.2!D7 -> 52.07303754 | E6: =т.6!D6/'т.4.1'!D6 -> 0.5974805668 | F6: ='т.4.2'!D7/'т.4.1'!D6*100 -> 1.335745278
A7: 3 | B7: Амгинская | C7: =(т.4!F7/т.1!C11)/1000 -> 11.43173653 | D7: ='т.4.1'!D7/т.2!D8 -> 15.89989173 | E7: =т.6!D7/'т.4.1'!D7 -> 1.345770258 | F7: ='т.4.2'!D8/'т.4.1'!D7*100 -> 4.549264051
A8: 4 | B8: Анабарская | C8: =(т.4!F8/т.1!C12)/1000 -> 6.493333333 | D8: ='т.4.1'!D8/т.2!D9 -> 13.43448276 | E8: =т.6!D8/'т.4.1'!D8 -> 1.17286961 | F8: ='т.4.2'!D9/'т.4.1'!D8*100 -> 2.395619439
A9: 5 | B9: Булунская | C9: =(т.4!F9/т.1!C13)/1000 -> 17.51566265 | D9: ='т.4.1'!D9/т.2!D10 -> 21.39514349 | E9: =т.6!D9/'т.4.1'!D9 -> 1.02579447 | F9: ='т.4.2'!D10/'т.4.1'!D9*100 -> 1.053790067
A10: 6 | B10: Верхневилюйская* | C10: =(т.4!F10/т.1!C14)/1000 -> 11.146 | D10: ='т.4.1'!D10/т.2!D11 -> 17.02545825 | E10: =т.6!D10/'т.4.1'!D10 -> 1.378346278 | F10: ='т.4.2'!D11/'т.4.1'!D10*100 -> 7.220612989
A11: 7 | B11: Верхнеколымская | C11: =(т.4!F11/т.1!C15)/1000 -> 27.57 | D11: ='т.4.1'!D11/т.2!D12 -> 27.67377666 | E11: =т.6!D11/'т.4.1'!D11 -> 0.9826895176 | F11: ='т.4.2'!D12/'т.4.1'!D11*100 -> 4.216539717
A12: 8 | B12: Верхоянская | C12: =(т.4!F12/т.1!C16)/1000 -> 19.29621622 | D12: ='т.4.1'!D12/т.2!D13 -> 25.46522411 | E12: =т.6!D12/'т.4.1'!D12 -> 0.882070891 | F12: ='т.4.2'!D13/'т.4.1'!D12*100 -> 4.207051749
A13: 9 | B13: Вилюйская | C13: =(т.4!F13/т.1!C17)/1000 -> 10.54772 | D13: ='т.4.1'!D13/т.2!D14 -> 20.3404042 | E13: =т.6!D13/'т.4.1'!D13 -> 1.303485493 | F13: ='т.4.2'!D14/'т.4.1'!D13*100 -> 2.461953863
A14: 10 | B14: Горная | C14: =(т.4!F14/т.1!C18)/1000 -> 8.253 | D14: ='т.4.1'!D14/т.2!D15 -> 15.62821524 | E14: =т.6!D14/'т.4.1'!D14 -> 1.726453007 | F14: ='т.4.2'!D15/'т.4.1'!D14*100 -> 3.64210994
A15: 11 | B15: Жиганская | C15: =(т.4!F15/т.1!C19)/1000 -> 13.03714286 | D15: ='т.4.1'!D15/т.2!D16 -> 13.9862069 | E15: =т.6!D15/'т.4.1'!D15 -> 1.230111769 | F15: ='т.4.2'!D16/'т.4.1'!D15*100 -> 5.086200599
A16: 12 | B16: Кобяйская | C16: =(т.4!F16/т.1!C20)/1000 -> 15.80894309 | D16: ='т.4.1'!D16/т.2!D17 -> 18.43827043 | E16: =т.6!D16/'т.4.1'!D16 -> 1.151272821 | F16: ='т.4.2'!D17/'т.4.1'!D16*100 -> 3.008999743
A17: 13 | B17: Ленская | C17: =(т.4!F17/т.1!C21)/1000 -> 5.493013699 | D17: ='т.4.1'!D17/т.2!D18 -> 11.75579009 | E17: =т.6!D17/'т.4.1'!D17 -> 1.683293848 | F17: ='т.4.2'!D18/'т.4.1'!D17*100 -> 6.790693035
A18: 14 | B18: Момская | C18: =(т.4!F18/т.1!C22)/1000 -> 21.594 | D18: ='т.4.1'!D18/т.2!D19 -> 27.48202354 | E18: =т.6!D18/'т.4.1'!D18 -> 0.5686764842 | F18: ='т.4.2'!D19/'т.4.1'!D18*100 -> 1.286236918
A19: 15 | B19: Намская | C19: =(т.4!F19/т.1!C23)/1000 -> 8.783522267 | D19: ='т.4.1'!D19/т.2!D20 -> 13.60462783 | E19: =т.6!D19/'т.4.1'!D19 -> 1.695477822 | F19: ='т.4.2'!D20/'т.4.1'!D19*100 -> 6.402769263
A20: 16 | B20: Нижнеколымская | C20: =(т.4!F20/т.1!C24)/1000 -> 23.19906977 | D20: ='т.4.1'!D20/т.2!D21 -> 25.96460177 | E20: =т.6!D20/'т.4.1'!D20 -> 1.001824452 | F20: ='т.4.2'!D21/'т.4.1'!D20*100 -> 2.238461847
A21: 17 | B21: Нюрбинская | C21: =(т.4!F21/т.1!C25)/1000 -> 13.80797468 | D21: ='т.4.1'!D21/т.2!D22 -> 16.79233374 | E21: =т.6!D21/'т.4.1'!D21 -> 1.155584891 | F21: ='т.4.2'!D22/'т.4.1'!D21*100 -> 1.543167435
A22: 18 | B22: Оймяконская | C22: =(т.4!F22/т.1!C26)/1000 -> 14.3602439 | D22: ='т.4.1'!D22/т.2!D23 -> 18.43074033 | E22: =т.6!D22/'т.4.1'!D22 -> 0.8653464001 | F22: ='т.4.2'!D23/'т.4.1'!D22*100 -> 1.32054962
A23: 19 | B23: Олекминская | C23: =(т.4!F23/т.1!C27)/1000 -> 11.44093117 | D23: ='т.4.1'!D23/т.2!D24 -> 18.75562488 | E23: =т.6!D23/'т.4.1'!D23 -> 1.069386499 | F23: ='т.4.2'!D24/'т.4.1'!D23*100 -> 3.90210587
A24: 20 | B24: Оленекская | C24: =(т.4!F24/т.1!C28)/1000 -> 18.57619048 | D24: ='т.4.1'!D24/т.2!D25 -> 24.43470091 | E24: =т.6!D24/'т.4.1'!D24 -> 0.4684952576 | F24: ='т.4.2'!D25/'т.4.1'!D24*100 -> 1.930274289
A25: 21 | B25: Среднеколымская | C25: =(т.4!F25/т.1!C29)/1000 -> 16.50378378 | D25: ='т.4.1'!D25/т.2!D26 -> 22.54948301 | E25: =т.6!D25/'т.4.1'!D25 -> 0.505584305 | F25: ='т.4.2'!D26/'т.4.1'!D25*100 -> 3.982706668
A26: 22 | B26: Сунтарская | C26: =(т.4!F26/т.1!C30)/1000 -> 8.564102564 | D26: ='т.4.1'!D26/т.2!D27 -> 16.01150527 | E26: =т.6!D26/'т.4.1'!D26 -> 1.206841317 | F26: ='т.4.2'!D27/'т.4.1'!D26*100 -> 5.491017964
A27: 23 | B27: Таттинская | C27: =(т.4!F27/т.1!C31)/1000 -> 13.01197531 | D27: ='т.4.1'!D27/т.2!D28 -> 20.86036616 | E27: =т.6!D27/'т.4.1'!D27 -> 1.096440126 | F27: ='т.4.2'!D28/'т.4.1'!D27*100 -> 4.176589466
A28: 24 | B28: Томпонская | C28: =(т.4!F28/т.1!C32)/1000 -> 14.20904 | D28: ='т.4.1'!D28/т.2!D29 -> 24.07985358 | E28: =т.6!D28/'т.4.1'!D28 -> 0.9091339035 | F28: ='т.4.2'!D29/'т.4.1'!D28*100 -> 3.260459538
A29: 25 | B29: Усть-Алданская | C29: =(т.4!F29/т.1!C33)/1000 -> 20.09072816 | D29: ='т.4.1'!D29/т.2!D30 -> 20.69138086 | E29: =т.6!D29/'т.4.1'!D29 -> 1.010307609 | F29: ='т.4.2'!D30/'т.4.1'!D29*100 -> 5.285730509
A30: 26 | B30: Усть-Майская | C30: =(т.4!F30/т.1!C34)/1000 -> 17.32662162 | D30: ='т.4.1'!D30/т.2!D31 -> 23.82329989 | E30: =т.6!D30/'т.4.1'!D30 -> 1.177854731 | F30: ='т.4.2'!D31/'т.4.1'!D30*100 -> 3.20550317
A31: 27 | B31: Усть-Янская | C31: =(т.4!F31/т.1!C35)/1000 -> 24.24114286 | D31: ='т.4.1'!D31/т.2!D32 -> 41.32683877 | E31: =т.6!D31/'т.4.1'!D31 -> 1.008562774 | F31: ='т.4.2'!D32/'т.4.1'!D31*100 -> 0.6612135213
A32: 28 | B32: Хангаласская | C32: =(т.4!F32/т.1!C36)/1000 -> 10.35490854 | D32: ='т.4.1'!D32/т.2!D33 -> 11.87680526 | E32: =т.6!D32/'т.4.1'!D32 -> 1.228273383 | F32: ='т.4.2'!D33/'т.4.1'!D32*100 -> 3.573773484
A33: 29 | B33: Чурапчинская | C33: =(т.4!F33/т.1!C37)/1000 -> 12.87466667 | D33: ='т.4.1'!D33/т.2!D34 -> 17.14445149 | E33: =т.6!D33/'т.4.1'!D33 -> 1.290870221 | F33: ='т.4.2'!D34/'т.4.1'!D33*100 -> 3.163096224
A34: 30 | B34: Мирнинская | C34: =(т.4!F34/т.1!C38)/1000 -> 3.360675862 | D34: ='т.4.1'!D34/т.2!D35 -> 10.21589099 | E34: =т.6!D34/'т.4.1'!D34 -> 2.225989025 | F34: ='т.4.2'!D35/'т.4.1'!D34*100 -> 3.689323576
A35: 31 | B35: Нерюнгринская | C35: =(т.4!F35/т.1!C39)/1000 -> 1.92119891 | D35: ='т.4.1'!D35/т.2!D36 -> 10.67655966 | E35: =т.6!D35/'т.4.1'!D35 -> 2.12886481 | F35: ='т.4.2'!D36/'т.4.1'!D35*100 -> 3.610937766
A36: 32 | B36: Якутская* | C36: =(т.4!F36/т.1!C40)/1000 -> 15.12214286 | D36: ='т.4.1'!D36/т.2!D37 -> 29.16115702 | E36: =т.6!D36/'т.4.1'!D36 -> 0.9216853243 | F36: ='т.4.2'!D37/'т.4.1'!D36*100 -> 1.388692079
A37: 33 | B37: Эвено-Бытантайская | C37: =(т.4!F37/т.1!C41)/1000 -> 1.346885246 | D37: ='т.4.1'!D37/т.2!D38 -> 6.486470968 | E37: =т.6!D37/'т.4.1'!D37 -> 3.105660795 | F37: ='т.4.2'!D37/'т.4.1'!D36*100 -> 1.388692079
A38: 34 | B38: Алданский | C38: =(т.4!F38/т.1!C42)/1000 -> 3.361458333 | D38: ='т.4.1'!D38/т.2!D39 -> 8.552309017 | E38: =т.6!D38/'т.4.1'!D38 -> 2.278385497 | F38: ='т.4.2'!D39/'т.4.1'!D38*100 -> 17.49767586
A39: 35 | B39: М.-Кангаласская | C39: =(т.4!F39/т.1!C43)/1000 -> 3.382922078 | D39: ='т.4.1'!D39/т.2!D40 -> 17.00016316 | E39: =т.6!D39/'т.4.1'!D39 -> 1.302925312 | F39: ='т.4.2'!D40/'т.4.1'!D39*100 -> 1.398353072
A40: 36 | B40: ГБ ГП "г.Нерюнгри" | D40: ='т.4.1'!D40/т.2!D41 -> 12.42897176 | E40: =т.6!D40/'т.4.1'!D40 -> 1.350792605 | F40: ='т.4.2'!D41/'т.4.1'!D40*100 -> 3.698532727
A41: 37 | B41: Сунтарская ДЮПБ | D41: ='т.4.1'!D41/т.2!D42 -> 16.16565008 | E41: =т.6!D41/'т.4.1'!D41 -> 0.9952140758 | F41: ='т.4.2'!D42/'т.4.1'!D41*100 -> 2.315513544
A42: 38 | B42: Бердигестях ДБ | D42: ='т.4.1'!D42/т.2!D43 -> 9.399878271 | E42: =т.6!D42/'т.4.1'!D42 -> 3.022921523 | F42: ='т.4.2'!D43/'т.4.1'!D42*100 -> 9.848484848
A43: 39 | B43: Б-ка ГО "Жатай" | C43: =(т.4!F44/т.1!C48)/1000 -> 2.03990099 | D43: ='т.4.1'!D44/т.2!D45 -> 7.53308958 | E43: =т.6!D44/'т.4.1'!D44 -> 2.716109304 | F43: ='т.4.2'!D45/'т.4.1'!D44*100 -> 1.130903267
B44: Итого по МБ | C44: 6.7 | D44: ='т.4.1'!D45/т.2!D46 -> 15.17634537 | E44: =т.6!D45/'т.4.1'!D45 -> 1.381316078 | F44: ='т.4.2'!D46*100/'т.4.1'!D45 -> 4.295491431
B45: НБ РС(Я) | C45: 5.1 | D45: ='т.4.1'!D46/т.2!D47 -> 45.75917418 | E45: =т.6!D46/'т.4.1'!D46 -> 0.7148522416 | F45: ='т.4.2'!D47*100/'т.4.1'!D46 -> 1.292981804
B46: ВСЕГО | C46: 8.7 | D46: 17.9 | E46: =т.6!D49/'т.4.1'!D49 -> 1.233886969 | F46: ='т.4.2'!D50*100/'т.4.1'!D49 -> 3.703069023

Sheet т.6
F1: Таблица 6
A2: Выдача документов из фондов библиотек
A4: № | B4: ЦБС | C4: 2018 | D4: 2019 | E4: "+ -" | F4: в городе | G4: на селе.
A5: 1 | B5: Абыйская | C5: 102350 | D5: 98540 | E5: =D5 - C5 -> -3810 | F5: =D5 - G5 -> 58134 | G5: 40406
A6: 2 | B6: Аллаиховская | C6: 41741 | D6: 45580 | E6: 3839 | F6: 37184 | G6: 8396
A7: 3 | B7: Амгинская | C7: 243262 | D7: 256921 | E7: 13659 | F7: =D7-G7 -> 0 | G7: 256921
A8: 4 | B8: Анабарская | C8: 31941 | D8: 27417 | E8: -4524 | F8: =D8-G8 -> 0 | G8: 27417
A9: 5 | B9: Булунская | C9: 150847 | D9: 149130 | E9: -1717 | F9: 99235 | G9: 49895
A10: 6 | B10: Верхневилюйская* | C10: 323153 | D10: 322624 | E10: -529 | F10: =D10-G10 -> 0 | G10: 322624
A11: 7 | B11: Верхнеколымская | C11: 127549 | D11: 108371 | E11: -19178 | F11: 75243 | G11: 33128
A12: 8 | B12: Верхоянская | C12: 182664 | D12: 188929 | E12: 6265 | F12: 105880 | G12: 83049
A13: 9 | B13: Вилюйская | C13: 331550 | D13: 343720 | E13: 12170 | F13: 183119 | G13: 160601
A14: 10 | B14: Горная | C14: 171873 | D14: 170981 | E14: -892 | F14: 0 | G14: 170981
A15: 11 | B15: Жиганская | C15: 66411 | D15: 67356 | E15: 945 | F15: 0 | G15: 67356
A16: 12 | B16: Кобяйская | C16: 223058 | D16: 223865 | E16: 807 | F16: 113441 | G16: 110424
A17: 13 | B17: Ленская | C17: 335443 | D17: 337492 | E17: 2049 | F17: 260064 | G17: 77428
A18: 14 | B18: Момская | C18: 49515 | D18: 49120 | E18: -395 | F18: 0 | G18: 49120
A19: 15 | B19: Намская | C19: 354881 | D19: 367839 | E19: 12958 | F19: =D19-G19 -> 0 | G19: 367839
A20: 16 | B20: Нижнеколымская | C20: 96286 | D20: 99938 | E20: 3652 | F20: 79518 | G20: 20420
A21: 17 | B21: Нюрбинская | C21: 381426 | D21: 378164 | E21: -3262 | F21: 136897 | G21: 241267
A22: 18 | B22: Оймяконская | C22: 99778 | D22: 101898 | E22: 2120 | F22: 62119 | G22: 39779
A23: 19 | B23: Олекминская | C23: 313730 | D23: 302199 | E23: -11531 | F23: 132820 | G23: 169379
A24: 20 | B24: Оленекская | C24: 32613 | D24: 36552 | E24: 3939 | F24: 0 | G24: 36552
A25: 21 | B25: Среднеколымская | C25: 64985 | D25: 61746 | E25: -3239 | F25: 29421 | G25: 32325
A26: 22 | B26: Сунтарская | C26: 245480 | D26: 241851 | E26: -3629 | F26: 0 | G26: 241851
A27: 23 | B27: Таттинская | C27: 229784 | D27: 231123 | E27: 1339 | F27: 0 | G27: 231123
A28: 24 | B28: Томпонская | C28: 172198 | D28: 161474 | E28: -10724 | F28: 65184 | G28: 96290
A29: 25 | B29: Усть-Алданская | C29: 474102 | D29: 418135 | E29: -55967 | F29: 0 | G29: 418135
A30: 26 | B30: Усть-Майская | C30: 149126 | D30: 151021 | E30: 1895 | F30: 114283 | G30: 36738
A31: 27 | B31: Усть-Янская | C31: 160995 | D31: 171141 | E31: 10146 | F31: 86694 | G31: 84447
A32: 28 | B32: Хангаласская | C32: 434796 | D32: 417172 | E32: -17624 | F32: 185769 | G32: 231403
A33: 29 | B33: Чурапчинская | C33: 353687 | D33: 349010 | E33: -4677 | F33: 0 | G33: 349010
A34: 30 | B34: Мирнинская | C34: 533916 | D34: 542360 | E34: 8444 | F34: 518176 | G34: 24184
A35: 31 | B35: Нерюнгринская | C35: 300202 | D35: 300204 | E35: 2 | F35: 285011 | G35: 15193
A36: 32 | B36: Эвено-Бытантайcкая | C36: 39012 | D36: 39026 | E36: 14 | F36: 0 | G36: 39026
A37: 33 | B37: Якутская* | C37: 1366973 | D37: 1403386 | E37: =D37 - C37 -> 36413 | F37: =D37 - G37 -> 1260248 | G37: 143138
A38: 34 | B38: Алданский | C38: 305211 | D38: 294094 | E38: =D38 - C38 -> -11117 | F38: =D38 - G38 -> 284239 | G38: 9855
A39: 35 | B39: Мегино-Кангаласский | C39: 135715 | D39: 135757 | E39: =D39 - C39 -> 42 | F39: =D39 - G39 -> 0 | G39: 135757
A40: 36 | B40: ГБ ГП "г.Нерюнгри " | C40: 278828 | D40: 155768 | E40: -123060 | F40: 155768 | G40: 0
A41: 37 | B41: Сунтарская ДЮПБ | C41: 50000 | D41: 50115 | E41: 115 | F41: 0 | G41: 50115
A42: 38 | B42: Бердигестях ДБ | C42: 38915 | D42: 46686 | F42: 0 | G42: 46686
A43: 39 | B43: Хоринская Ввил. | C43: 15610 | E43: -15610 | F43: 0
A44: 40 | B44: Б-ка ГО "п. Жатай" | C44: 55950 | D44: 55960 | E44: =D44 - C44 -> 10 | F44: 55960 | G44: 0
B45: Итого по МБ | C45: =SUM(C5:C44) -> 9065556 | D45: =SUM(D5:D44) -> 8902665 | E45: -162891 | F45: 4384407 | G45: =SUM(G5:G44) -> 4518258
B46: НБ РС(Я) | C46: 676740 | D46: 1167719 | E46: 490979 | F46: 1167719 | G46: 0
B47: ЦДЮ НБ РС(Я) | C47: 258496 | D47: 193025 | E47: -65471 | F47: 193025 | G47: 0
B48: РБС | C48: 83763 | D48: 83555 | E48: -208 | F48: 83555 | G48: 0
B49: ВСЕГО | C49: =SUM(C45:C48) -> 10084555 | D49: =SUM(D45:D48) -> 10346964 | E49: 262409 | F49: =SUM(F45:F48) -> 5828706 | G49: =SUM(G45:G48) -> 4518258
B50: КДУ | C50: 407247 | D50: 376086 | E50: =D50-C50 -> -31161 | F50: =D50-G50 -> 59583 | G50: 316503
B51: Итого по РС(Я) | C51: =SUM(C49:C50) -> 10491802 | D51: =SUM(D49:D50) -> 10723050 | E51: =D51-C51 -> 231248 | F51: =D51-G51 -> 5888289 | G51: =SUM(G49:G50) -> 4834761

Sheet т.6.1
G1: Таблица 6.1
A2: Выдача документов из фондов библиотек
A4: № | B4: ЦБС | C4: 2018 | D4: 2019 | E4: в том числе
E5: из фонда на физ. нос. | F5: из ЭБ | G5: инсталл. док. | H5: сетев. удал. лиц. док.
A6: 1 | B6: Абыйская | C6: 102350 | D6: 98540 | E6: 98540
A7: 2 | B7: Аллаиховская | C7: 41741 | D7: 45580 | E7: 45580
A8: 3 | B8: Амгинская | C8: 243262 | D8: 256921 | E8: 254692 | F8: 201 | H8: 2028
A9: 4 | B9: Анабарская | C9: 31941 | D9: 27417 | E9: 27409 | F9: 3 | H9: 5
A10: 5 | B10: Булунская | C10: 150847 | D10: 149130 | E10: 149130
A11: 6 | B11: Верхневилюйская* | C11: 323153 | D11: 322624 | E11: 322311 | G11: 291 | H11: 22
A12: 7 | B12: Верхнеколымская | C12: 127549 | D12: 108371 | E12: 108116 | G12: 242 | H12: 13
A13: 8 | B13: Верхоянская | C13: 182664 | D13: 188929 | E13: 188787 | G13: 142
A14: 9 | B14: Вилюйская | C14: 331550 | D14: 343720 | E14: 343720
A15: 10 | B15: Горная | C15: 171873 | D15: 170981 | E15: 170126 | G15: 142 | H15: 713
A16: 11 | B16: Жиганская | C16: 66411 | D16: 67356 | E16: 67337 | F16: 19
A17: 12 | B17: Кобяйская | C17: 223058 | D17: 223865 | E17: 223584 | F17: 203 | H17: 78
A18: 13 | B18: Ленская | C18: 335443 | D18: 337492 | E18: 336467 | H18: 1025
A19: 14 | B19: Момская | C19: 49515 | D19: 49120 | E19: 49120
A20: 15 | B20: Намская | C20: 354881 | D20: 367839 | E20: 367803 | G20: 9 | H20: 27
A21: 16 | B21: Нижнеколымская | C21: 96286 | D21: 99938 | E21: 99938
A22: 17 | B22: Нюрбинская | C22: 381426 | D22: 378164 | E22: 378164
A23: 18 | B23: Оймяконская | C23: 99778 | D23: 101898 | E23: 101898
A24: 19 | B24: Олекминская | C24: 313730 | D24: 302199 | E24: 301596 | F24: 483 | G24: 120
A25: 20 | B25: Оленекская | C25: 32613 | D25: 36552 | E25: 36552
A26: 21 | B26: Среднеколымская | C26: 64985 | D26: 61746 | E26: 61746
A27: 22 | B27: Сунтарская | C27: 245480 | D27: 241851 | E27: 241243 | F27: 38 | G27: 16 | H27: 554
A28: 23 | B28: Таттинская | C28: 229784 | D28: 231123 | E28: 229655 | F28: 1198 | G28: 16 | H28: 254
A29: 24 | B29: Томпонская | C29: 172198 | D29: 161474 | E29: 161474
A30: 25 | B30: Усть-Алданская | C30: 474102 | D30: 418135 | E30: 413147 | F30: 2600 | G30: 2388
A31: 26 | B31: Усть-Майская | C31: 149126 | D31: 151021 | E31: 150720 | G31: 301
A32: 27 | B32: Усть-Янская | C32: 160995 | D32: 171141 | E32: 171141
A33: 28 | B33: Хангаласская | C33: 434796 | D33: 417172 | E33: 381915 | F33: 32621 | G33: 2336 | H33: 300
A34: 29 | B34: Чурапчинская | C34: 353687 | D34: 349010 | E34: 349010
A35: 30 | B35: Мирнинская | C35: 533916 | D35: 542360 | E35: 539532 | G35: 1509 | H35: 1319
A36: 31 | B36: Нерюнгринская | C36: 300202 | D36: 300204 | E36: 291055 | F36: 3310 | G36: 510 | H36: 5329
A37: 32 | B37: Эвено-Бытантайcкая | C37: 39012 | D37: 39026 | E37: 39026
A38: 33 | B38: Якутская* | C38: 1366973 | D38: 1403386 | E38: 1398457 | G38: 789 | H38: 4140
A39: 34 | B39: Алданский | C39: 305211 | D39: 294094 | E39: 292561 | F39: 156 | G39: 741 | H39: 636
A40: 35 | B40: Мегино-Кангаласский | C40: 135715 | D40: 135757 | E40: 135757
A41: 36 | B41: ГБ ГП "г.Нерюнгри " | C41: 278828 | D41: 155768 | E41: 149295 | G41: 6473
A42: 37 | B42: Сунтарская ДЮПБ | C42: 50000 | D42: 50115 | E42: 50115
A43: 38 | B43: Бердигестях ДБ | C43: 38915 | D43: 46686 | E43: 46520 | H43: 166
A44: 39 | B44: Хоринская Ввил. | C44: 15610
A45: 40 | B45: Б-ка ГО "п. Жатай" | C45: 55950 | D45: 55960 | E45: 55960
B46: Итого по МБ | C46: =SUM(C6:C45) -> 9065556 | D46: 8902665 | E46: 8829199 | F46: 40832 | G46: 16025 | H46: 16609
B47: НБ РС(Я) | C47: 676740 | D47: 1167719 | E47: 642727 | F47: 437388 | G47: 3290 | H47: 84314
B48: ЦДЮ НБ РС(Я) | C48: 258496 | D48: 193025 | E48: 193025
B49: РБС | C49: 83763 | D49: 83555 | E49: 56594 | F49: 21737 | G49: 422 | H49: 4802
B50: ВСЕГО | C50: =SUM(C46:C49) -> 10084555 | D50: 10346964 | E50: 9721545 | F50: 499957 | G50: 19737 | H50: 105725
B51: КДУ | C51: 407247 | D51: 376086 | E51: 376086
B52: Итого по РС(Я) | C52: =SUM(C50:C51) -> 10491802 | D52: 10723050 | E52: 10097631 | F52: 499957 | G52: 19737 | H52: 105725

Sheet т.7
G1: Таблица 7
A2: Общие сведения.
A3: Характеристика помещений библиотек республики.
A5: № | B5: ЦБС | C5: Кол-во биб-к всего | D5: Общая площадь (кв.м.) | E5: требуют кап.ремонт (ед.) | F5: аварий- ных (ед.) | G5: арендо- ванных (ед.) | H5: прочие
A6: 1 | B6: Абыйская | C6: 7 | D6: 692.5
A7: 2 | B7: Аллаиховская | C7: 6 | D7: 407.2
A8: 3 | B8: Амгинская | C8: 16 | D8: 1365.7
A9: 4 | B9: Анабарская | C9: 3 | D9: 214.2
A10: 5 | B10: Булунская | C10: 8 | D10: 822.2 | E10: 5
A11: 6 | B11: Верхневилюйская* | C11: 23 | D11: 2330.6
A12: 7 | B12: Верхнеколымская | C12: 7 | D12: 1255.2 | E12: 1 | G12: 1
A13: 8 | B13: Верхоянская | C13: 17 | D13: 1186.4
A14: 9 | B14: Вилюйская | C14: 24 | D14: 1650.9 | F14: 2 | G14: 1
A15: 10 | B15: Горная | C15: 9 | D15: 856.3 | E15: 1
A16: 11 | B16: Жиганская | C16: 5 | D16: 270.8
A17: 12 | B17: Кобяйская | C17: 17 | D17: 1511.8 | G17: 13
A18: 13 | B18: Ленская | C18: 21 | D18: 2378.7 | G18: 5
A19: 14 | B19: Момская | C19: 7 | D19: 591.9
A20: 15 | B20: Намская | C20: 20 | D20: 1724 | E20: 3 | F20: 2
A21: 16 | B21: Нижнеколымская | C21: 6 | D21: 320 | G21: 5
A22: 17 | B22: Нюрбинская | C22: 23 | D22: 1623
A23: 18 | B23: Оймяконская | C23: 9 | D23: 803.3 | E23: 1 | G23: 2
A24: 19 | B24: Олекминская | C24: 27 | D24: 1508.8 | E24: 1
A25: 20 | B25: Оленекская | C25: 5 | D25: 357.1 | E25: 4
A26: 21 | B26: Среднеколымская | C26: 11 | D26: 588.5 | E26: 1
A27: 22 | B27: Сунтарская | C27: 19 | D27: 1585.5 | F27: 1
A28: 23 | B28: Таттинская | C28: 15 | D28: 1672.2 | E28: 2
A29: 24 | B29: Томпонская | C29: 13 | D29: 1206.2 | G29: 1
A30: 25 | B30: Усть-Алданская | C30: 28 | D30: 2872.4 | E30: 4 | F30: 2
A31: 26 | B31: Усть-Майская | C31: 10 | D31: 623.1 | E31: 3 | G31: 7
A32: 27 | B32: Усть-Янская | C32: 9 | D32: 554.9 | G32: 9
A33: 28 | B33: Хангаласская | C33: 27 | D33: 3116.6 | E33: 1 | F33: 2 | G33: 2
A34: 29 | B34: Чурапчинская | C34: 19 | D34: 1588.5 | E34: 1
A35: 30 | B35: Мирнинская | C35: 11 | D35: 2720.3 | E35: 1 | G35: 8
A36: 31 | B36: Нерюнгринская | C36: 8 | D36: 1468.9 | G36: 1
A37: 32 | B37: Эвено-Бытантайская | C37: 3 | D37: 370
A38: 33 | B38: Якутская* | C38: 18 | D38: 7939.1 | E38: 1 | F38: 1 | G38: 2
A39: 34 | B39: Алданский | C39: 7 | D39: 1492.5 | G39: 1
A40: 35 | B40: Мегино-Кангаласский | C40: 2 | D40: 851.6
A41: 36 | B41: ГБ ГП "г.Нерюнгри " | C41: 1 | D41: 1527.5
A42: 37 | B42: Сунтарская ПДЮБ | C42: 1 | D42: 108.6
A43: 38 | B43: Бердигестях ДБ | C43: 1 | D43: 192.2
A44: 39 | B44: Б-ка ГО "п. Жатай" | C44: 1 | D44: 270
B45: ВСЕГО: | C45: =SUM(C6:C44) -> 464 | D45: 52619.2 | E45: 30 | F45: 10 | G45: 58 | H45: 0

Sheet т.8
I1: Таблица 8
A2: Материально-техническая база библиотек республики.
A3: Количество технических средств, средств связи.
A4: № | B4: ЦБС | C4: Всего | D4: число | E4: число | F4: число | G4: число библиотек, имеющих
C5: кол-во | D5: посад. | E5: посад. | F5: посад. | G5: здание | H5: спец. | I5: Интернет | J5: доступ
C6: биб-к | D6: мест | E6: мест | F6: мест | G6: для лиц | H6: оборуд. | I6: сайт | J6: в
D7: для польз. | E7: комп. | F7: с Инт. | G7: с ОВЗ, пандус | H7: для инвал. | I7: или стр. | J7: Инт.
A8: 1 | B8: Абыйская | C8: 7 | D8: 74 | E8: 9 | F8: 9 | G8: 2 | H8: 2 | I8: 1 | J8: 7
A9: 2 | B9: Аллаиховская | C9: 6 | D9: 63 | E9: 7 | F9: 6 | I9: 1 | J9: 4
A10: 3 | B10: Амгинская | C10: 16 | D10: 138 | E10: 27 | F10: 25 | G10: 6 | H10: 1 | I10: 2 | J10: 16
A11: 4 | B11: Анабарская | C11: 3 | D11: 25 | E11: 3 | F11: 2 | H11: 1 | I11: 2 | J11: 3
A12: 5 | B12: Булунская | C12: 8 | D12: 96 | E12: 7 | F12: 5 | I12: 2 | J12: 8
A13: 6 | B13: Верхневилюйская* | C13: 23 | D13: 327 | E13: 49 | F13: 34 | G13: 9 | H13: 1 | I13: 1 | J13: 23
A14: 7 | B14: Верхнеколымская | C14: 7 | D14: 116 | E14: 17 | F14: 12 | G14: 3 | H14: 3 | I14: 1 | J14: 7
A15: 8 | B15: Верхоянская | C15: 17 | D15: 164 | E15: 13 | F15: 10 | G15: 2 | H15: 1 | I15: 1 | J15: 14
A16: 9 | B16: Вилюйская | C16: 24 | D16: 206 | E16: 31 | F16: 20 | G16: 10 | I16: 1 | J16: 24
A17: 10 | B17: Горная | C17: 9 | D17: 92 | E17: 15 | F17: 11 | G17: 2 | I17: 1 | J17: 9
A18: 11 | B18: Жиганская | C18: 5 | D18: 40 | E18: 6 | F18: 6 | I18: 1 | J18: 5
A19: 12 | B19: Кобяйская | C19: 17 | D19: 190 | E19: 31 | F19: 27 | I19: 1 | J19: 15
A20: 13 | B20: Ленская | C20: 21 | D20: 191 | E20: 23 | F20: 23 | G20: 5 | I20: 2 | J20: 21
A21: 14 | B21: Момская | C21: 7 | D21: 54 | E21: 7 | F21: 6 | G21: 1 | J21: 6
A22: 15 | B22: Намская | C22: 20 | D22: 221 | E22: 33 | F22: 27 | G22: 9 | H22: 1 | I22: 1 | J22: 19
A23: 16 | B23: Нижнеколымская | C23: 6 | D23: 34 | E23: 4 | F23: 4 | I23: 1 | J23: 6
A24: 17 | B24: Нюрбинская | C24: 23 | D24: 218 | E24: 20 | F24: 19 | I24: 1 | J24: 22
A25: 18 | B25: Оймяконская | C25: 9 | D25: 86 | E25: 3 | F25: 3 | I25: 1 | J25: 8
A26: 19 | B26: Олекминская | C26: 27 | D26: 258 | E26: 52 | F26: 34 | G26: 7 | H26: 1 | I26: 1 | J26: 22
A27: 20 | B27: Оленекская | C27: 5 | D27: 36 | E27: 8 | F27: 5 | I27: 1 | J27: 5
A28: 21 | B28: Среднеколымская | C28: 11 | D28: 60 | E28: 8 | F28: 8 | I28: 1 | J28: 8
A29: 22 | B29: Сунтарская | C29: 19 | D29: 180 | E29: 30 | F29: 23 | G29: 12 | I29: 1 | J29: 17
A30: 23 | B30: Таттинская | C30: 15 | D30: 170 | E30: 27 | F30: 21 | I30: 15 | J30: 15
A31: 24 | B31: Томпонская | C31: 13 | D31: 138 | E31: 19 | F31: 15 | I31: 1 | J31: 12
A32: 25 | B32: Усть-Алданская | C32: 28 | D32: 332 | E32: 55 | F32: 34 | G32: 6 | H32: 1 | I32: 2 | J32: 28
A33: 26 | B33: Усть-Майская | C33: 10 | D33: 56 | E33: 3 | F33: 3 | I33: 1 | J33: 10
A34: 27 | B34: Усть-Янская | C34: 9 | D34: 57 | E34: 2 | F34: 2 | I34: 1 | J34: 7
A35: 28 | B35: Хангаласская | C35: 27 | D35: 292 | E35: 88 | F35: 38 | G35: 3 | I35: 2 | J35: 20
A36: 29 | B36: Чурапчинская | C36: 19 | D36: 204 | E36: 38 | F36: 28 | I36: 1 | J36: 16
A37: 30 | B37: Мирнинская | C37: 11 | D37: 235 | E37: 25 | F37: 20 | G37: 1 | H37: 2 | I37: 1 | J37: 11
A38: 31 | B38: Нерюнгринская | C38: 8 | D38: 143 | E38: 28 | F38: 25 | G38: 4 | I38: 8 | J38: 7
A39: 32 | B39: Эвено-Бытантайская | C39: 3 | D39: 10 | E39: 1 | F39: 1 | I39: 1 | J39: 3
A40: 33 | B40: Якутская* | C40: 18 | D40: 644 | E40: 66 | F40: 62 | G40: 8 | H40: 5 | I40: 18 | J40: 18
A41: 34 | B41: Алданский | C41: 7 | D41: 164 | E41: 25 | F41: 22 | G41: 2 | H41: 1 | I41: 2 | J41: 4
A42: 35 | B42: Мегино-Кангаласский | C42: 2 | D42: 50 | E42: 5 | F42: 5 | G42: 2 | I42: 2 | J42: 2
A43: 36 | B43: ГБ ГП "г.Нерюнгри " | C43: 1 | D43: 208 | E43: 16 | F43: 16 | G43: 1 | H43: 1 | I43: 1 | J43: 1
A44: 37 | B44: Сунтарская ПДЮБ | C44: 1 | D44: 14 | J44: 1
A45: 38 | B45: Бердигестях ДБ | C45: 1 | D45: 36 | E45: 3 | F45: 3 | I45: 1 | J45: 1
A46: 39 | B46: Б-ка ГО "п. Жатай" | C46: 1 | D46: 26 | G46: 1 | I46: 1 | J46: 1
B47: ИТОГО по МБ | C47: =SUM(C8:C46) -> 464 | D47: 5648 | E47: 804 | F47: 614 | G47: 96 | H47: 21 | I47: 83 | J47: 426
B48: НБ РС(Я) | C48: 1 | D48: 404 | E48: 49 | F48: 38 | G48: 1 | H48: 1 | I48: 1 | J48: 1
B49: ЦДЮ НБ РС(Я) | C49: 1 | D49: 139 | E49: 7 | F49: 7 | I49: 1 | J49: 1
B50: РБС | C50: 1 | D50: 16 | E50: 9 | F50: 9 | H50: 1 | I50: 1 | J50: 1
B51: ВСЕГО | C51: =SUM(C47:C50) -> 467 | D51: 6207 | E51: 869 | F51: =SUM(F47:F50) -> 668 | G51: 97 | H51: 23 | I51: 86 | J51: 429
B52: КДУ | C52: 40 | D52: 330 | E52: 41 | F52: 27 | G52: 10 | I52: 5 | J52: 36
B53: Итого по РС(Я) | C53: =SUM(C51:C52) -> 507 | D53: 6537 | E53: 910 | F53: 695 | G53: 107 | H53: 23 | I53: 91 | J53: 465

Sheet т.8.1
J1: Таблица 8.1
A2: Материально-техническая база библиотек на селе.
A3: Количество технических средств, средств связи.
A4: № | B4: ЦБС | C4: Всего | D4: число | E4: число | F4: число | G4: число библиотек, имеющих
C5: кол-во | D5: посад. | E5: посад. | F5: посад. | G5: здание | H5: спец. | I5: Интернет | J5: доступ
C6: биб-к | D6: мест | E6: мест | F6: мест | G6: для лиц | H6: оборуд. | I6: сайт | J6: в
D7: для польз. | E7: компьют. | F7: с Инт. | G7: с ОВЗ, пандус | H7: для инвал. | J7: Интернет
A8: 1 | B8: Абыйская | C8: 5 | D8: 48 | E8: 5 | F8: 5 | J8: 5
A9: 2 | B9: Аллаиховская | C9: 4 | D9: 37 | E9: 3 | F9: 2 | J9: 2
A10: 3 | B10: Амгинская | C10: 16 | D10: 138 | E10: 27 | F10: 25 | G10: 6 | H10: 1 | I10: 2 | J10: 16
A11: 4 | B11: Анабарская | C11: 3 | D11: 25 | E11: 3 | F11: 2 | H11: 1 | I11: 2 | J11: 3
A12: 5 | B12: Булунская | C12: 6 | D12: 48 | E12: 5 | F12: 3 | J12: 6
A13: 6 | B13: Верхневилюйская* | C13: 23 | D13: 327 | E13: 49 | F13: 34 | G13: 9 | H13: 1 | I13: 1 | J13: 23
A14: 7 | B14: Верхнеколымская | C14: 5 | D14: 55 | E14: 10 | F14: 5 | G14: 1 | H14: 1 | J14: 5
A15: 8 | B15: Верхоянская | C15: 13 | D15: 100 | E15: 9 | F15: 6 | J15: 10
A16: 9 | B16: Вилюйская | C16: 20 | D16: 121 | E16: 23 | F16: 15 | G16: 7 | J16: 20
A17: 10 | B17: Горная | C17: 9 | D17: 92 | E17: 15 | F17: 11 | G17: 2 | I17: 1 | J17: 9
A18: 11 | B18: Жиганская | C18: 5 | D18: 40 | E18: 6 | F18: 6 | I18: 1 | J18: 5
A19: 12 | B19: Кобяйская | C19: 15 | D19: 144 | E19: 17 | F19: 13 | J19: 13
A20: 13 | B20: Ленская | C20: 14 | D20: 43 | E20: 14 | F20: 14 | G20: 3 | J20: 14
A21: 14 | B21: Момская | C21: 7 | D21: 54 | E21: 7 | F21: 6 | G21: 1 | J21: 6
A22: 15 | B22: Намская | C22: 20 | D22: 221 | E22: 33 | F22: 27 | G22: 9 | H22: 1 | I22: 1 | J22: 19
A23: 16 | B23: Нижнеколымская | C23: 3 | D23: 16 | E23: 2 | F23: 2 | J23: 3
A24: 17 | B24: Нюрбинская | C24: 20 | D24: 156 | E24: 18 | F24: 17 | J24: 19
A25: 18 | B25: Оймяконская | C25: 6 | D25: 56 | E25: 1 | F25: 1 | J25: 5
A26: 19 | B26: Олекминская | C26: 25 | D26: 193 | E26: 47 | F26: 29 | G26: 5 | J26: 20
A27: 20 | B27: Оленекская | C27: 5 | D27: 36 | E27: 8 | F27: 5 | I27: 1 | J27: 5
A28: 21 | B28: Среднеколымская | C28: 9 | D28: 38 | E28: 6 | F28: 6 | J28: 6
A29: 22 | B29: Сунтарская | C29: 19 | D29: 180 | E29: 30 | F29: 23 | G29: 12 | I29: 1 | J29: 17
A30: 23 | B30: Таттинская | C30: 15 | D30: 170 | E30: 27 | F30: 21 | I30: 15 | J30: 15
A31: 24 | B31: Томпонская | C31: 10 | D31: 80 | E31: 14 | F31: 10 | J31: 9
A32: 25 | B32: Усть-Алданская | C32: 28 | D32: 332 | E32: 55 | F32: 34 | G32: 6 | H32: 1 | I32: 2 | J32: 28
A33: 26 | B33: Усть-Майская | C33: 5 | D33: 12 | J33: 5
A34: 27 | B34: Усть-Янская | C34: 5 | D34: 17 | J34: 3
A35: 28 | B35: Хангаласская | C35: 22 | D35: 169 | E35: 39 | F35: 26 | G35: 2 | I35: 1 | J35: 16
A36: 29 | B36: Чурапчинская | C36: 19 | D36: 204 | E36: 38 | F36: 28 | I36: 1 | J36: 16
A37: 30 | B37: Мирнинская | C37: 3 | D37: 20 | E37: 4 | F37: 2 | J37: 3
A38: 31 | B38: Нерюнгринская | C38: 2 | D38: 18 | E38: 3 | F38: 2 | I38: 2 | J38: 2
A39: 32 | B39: Эвено-Бытантайская | C39: 3 | D39: 10 | E39: 1 | F39: 1 | I39: 1 | J39: 3
A40: 33 | B40: Якутская* | C40: 4 | D40: 92 | E40: 14 | F40: 12 | G40: 2 | H40: 1 | I40: 4 | J40: 4
A41: 34 | B41: Алданский | C41: 2 | D41: 17 | E41: 2
A42: 35 | B42: Мегино-Кангаласская | C42: 2 | D42: 50 | E42: 5 | F42: 5 | G42: 2 | I42: 2 | J42: 2
A43: 36 | B43: Сунтарская ПДЮБ | C43: 1 | D43: 14 | J43: 1
A44: 37 | B44: Бердигестях ДБ | C44: 1 | D44: 36 | E44: 3 | F44: 3 | I44: 1 | J44: 1
B45: ВСЕГО: | C45: =SUM(C8:C44) -> 374 | D45: 3409 | E45: 543 | F45: 401 | G45: 67 | H45: 7 | I45: 39 | J45: 339
B46: КДУ | C46: 35 | D46: 282 | E46: 33 | F46: 21 | G46: 9 | J46: 31
B47: Итого по РС(Я) | C47: =SUM(C45:C46) -> 409 | D47: 3691 | E47: 576 | F47: 422 | G47: 76 | H47: 7 | I47: 39 | J47: 370

Sheet т.9
J1: Таблица 9
A2: Персонал библиотек республики.
C4: Штат | D4: Числ. | E4: из них | F4: из них имеют | J4: со стажем работы
A5: № | B5: ЦБС | C5: библ. | D5: раб-ков | E5: основной | F5: высшее | G5: из них | H5: среднее | I5: из них | J5: до 3 | K5: от 3 до | L5: свыше
D6: всего | E6: персонал | F6: обр. | G6: библ. | H6: спец. | I6: библ. | J6: лет | K6: 10 лет | L6: 10 лет
A7: 1 | B7: Абыйская | C7: 20 | D7: 20 | E7: 14 | F7: 7 | G7: 5 | H7: 7 | I7: 6 | J7: 2 | K7: 5 | L7: 7
A8: 2 | B8: Аллаиховская | C8: 15.5 | D8: 17 | E8: 11 | F8: 8 | G8: 8 | H8: 2 | J8: 1 | K8: 4 | L8: 6
A9: 3 | B9: Амгинская | C9: 57.5 | D9: 59 | E9: 42 | F9: 31 | G9: 22 | H9: 9 | I9: 7 | J9: 2 | K9: 11 | L9: 29
A10: 4 | B10: Анабарская | C10: 8 | D10: 8 | E10: 5 | F10: 1 | G10: 1 | H10: 3 | I10: 1 | J10: 2 | K10: 1 | L10: 2
A11: 5 | B11: Булунская | C11: 32 | D11: 31 | E11: 21 | F11: 5 | G11: 4 | H11: 14 | I11: 9 | J11: 6 | K11: 5 | L11: 10
A12: 6 | B12: Верхневилюйская* | C12: 57.5 | D12: 65 | E12: 43 | F12: 29 | G12: 26 | H12: 13 | I12: 8 | J12: 10 | K12: 10 | L12: 23
A13: 7 | B13: Верхнеколымская | C13: 17.5 | D13: 22 | E13: 15 | F13: 7 | G13: 5 | H13: 7 | J13: 3 | K13: 5 | L13: 7
A14: 8 | B14: Верхоянская | C14: 54 | D14: 60 | E14: 36 | F14: 15 | G14: 13 | H14: 21 | I14: 10 | J14: 9 | K14: 9 | L14: 18
A15: 9 | B15: Вилюйская | C15: 52.5 | D15: 58 | E15: 43 | F15: 32 | G15: 21 | H15: 11 | I15: 7 | J15: 7 | K15: 7 | L15: 29
A16: 10 | B16: Горная | C16: 24 | D16: 30 | E16: 20 | F16: 18 | G16: 16 | H16: 1 | I16: 1 | J16: 2 | K16: 8 | L16: 10
A17: 11 | B17: Жиганская | C17: 9 | D17: 9 | E17: 6 | F17: 4 | G17: 4 | H17: 2 | I17: 2 | J17: 1 | K17: 3 | L17: 2
A18: 12 | B18: Кобяйская | C18: 45.5 | D18: 51 | E18: 32 | F18: 19 | G18: 10 | H18: 13 | I18: 8 | J18: 1 | K18: 11 | L18: 20
A19: 13 | B19: Ленская | C19: 92 | D19: 92 | E19: 54 | F19: 19 | G19: 9 | H19: 24 | I19: 10 | J19: 11 | K19: 21 | L19: 22
A20: 14 | B20: Момская | C20: 20 | D20: 22 | E20: 14 | F20: 8 | G20: 7 | H20: 5 | I20: 3 | J20: 5 | K20: 3 | L20: 6
A21: 15 | B21: Намская | C21: 57.5 | D21: 65 | E21: 38 | F21: 29 | G21: 25 | H21: 7 | I21: 2 | J21: 8 | K21: 8 | L21: 22
A22: 16 | B22: Нижнеколымская | C22: 15 | D22: 13 | E22: 12 | F22: 3 | G22: 3 | H22: 9 | I22: 6 | J22: 2 | K22: 4 | L22: 6
A23: 17 | B23: Нюрбинская | C23: 63.5 | D23: 68 | E23: 46 | F23: 35 | G23: 29 | H23: 9 | I23: 8 | J23: 4 | K23: 10 | L23: 32
A24: 18 | B24: Оймяконская | C24: 26.5 | D24: 26 | E24: 20 | F24: 9 | G24: 8 | H24: 11 | I24: 6 | J24: 6 | K24: 5 | L24: 9
A25: 19 | B25: Олекминская | C25: 68 | D25: 68 | E25: 42 | F25: 24 | G25: 12 | H25: 12 | I25: 9 | J25: 5 | K25: 13 | L25: 24
A26: 20 | B26: Оленекская | C26: 14.5 | D26: 14 | E26: 13 | F26: 7 | G26: 4 | H26: 4 | I26: 3 | J26: 2 | K26: 8 | L26: 3
A27: 21 | B27: Среднеколымская | C27: 20 | D27: 20 | E27: 19 | F27: 7 | G27: 6 | H27: 11 | I27: 9 | J27: 2 | K27: 6 | L27: 11
A28: 22 | B28: Сунтарская | C28: 51.75 | D28: 54 | E28: 36 | F28: 23 | G28: 21 | H28: 11 | I28: 5 | J28: 4 | K28: 13 | L28: 19
A29: 23 | B29: Таттинская | C29: 42.5 | D29: 49 | E29: 31 | F29: 23 | G29: 19 | H29: 8 | I29: 6 | J29: 2 | K29: 7 | L29: 22
A30: 24 | B30: Томпонская | C30: 38 | D30: 37 | E30: 30 | F30: 19 | G30: 14 | H30: 7 | I30: 5 | J30: 10 | K30: 9 | L30: 11
A31: 25 | B31: Усть-Алданская | C31: 73 | D31: 91 | E31: 55 | F31: 46 | G31: 43 | H31: 8 | I31: 3 | J31: 8 | K31: 15 | L31: 32
A32: 26 | B32: Усть-Майская | C32: 33 | D32: 33 | E32: 24 | F32: 12 | G32: 7 | H32: 10 | I32: 3 | J32: 6 | K32: 7 | L32: 11
A33: 27 | B33: Усть-Янская | C33: 19 | D33: 19 | E33: 17 | F33: 8 | G33: 6 | H33: 4 | I33: 4 | J33: 7 | K33: 4 | L33: 6
A34: 28 | B34: Хангаласская | C34: 65 | D34: 82 | E34: 50 | F34: 42 | G34: 30 | H34: 7 | I34: 4 | J34: 5 | K34: 13 | L34: 32
A35: 29 | B35: Чурапчинская | C35: 48 | D35: 59 | E35: 35 | F35: 30 | G35: 28 | H35: 5 | I35: 3 | J35: 11 | K35: 5 | L35: 19
A36: 30 | B36: Мирнинская | C36: 69.25 | D36: 72 | E36: 47 | F36: 30 | G36: 22 | H36: 15 | I36: 3 | J36: 7 | K36: 25 | L36: 15
A37: 31 | B37: Нерюнгринская | C37: 35.25 | D37: 36 | E37: 28 | F37: 17 | G37: 9 | H37: 11 | I37: 5 | J37: 4 | K37: 5 | L37: 19
A38: 32 | B38: Эвено-Бытантай | C38: 8 | D38: 10 | E38: 5 | H38: 4 | I38: 1 | K38: 1 | L38: 4
A39: 33 | B39: Якутская* | C39: 185 | D39: 191 | E39: 169 | F39: 155 | G39: 115 | H39: 13 | I39: 9 | J39: 41 | K39: 43 | L39: 85
A40: 34 | B40: Алданский | C40: 53.5 | D40: 53 | E40: 35 | F40: 15 | G40: 6 | H40: 19 | I40: 9 | J40: 4 | K40: 10 | L40: 21
A41: 35 | B41: М.-Кангаласский | C41: 29 | D41: 22 | E41: 20 | F41: 19 | G41: 19 | H41: 1 | I41: 1 | K41: 11 | L41: 9
A42: 36 | B42: ГБ ГП "г.Нерюнгри " | C42: 15 | D42: 15 | E42: 13 | F42: 12 | G42: 5 | H42: 1 | I42: 1 | K42: 6 | L42: 7
A43: 37 | B43: Сунтарская ПДЮБ | C43: 7 | D43: 7 | E43: 5 | F43: 3 | G43: 3 | H43: 2 | I43: 2 | J43: 1 | L43: 4
A44: 38 | B44: Бердигестях ДБ | C44: 7.5 | D44: 8 | E44: 4 | F44: 4 | G44: 4 | K44: 1 | L44: 3
A45: 39 | B45: Б-ка ГО "п. Жатай" | C45: 5 | D45: 5 | E45: 3 | F45: 2 | G45: 1 | H45: 1 | I45: 1 | K45: 1 | L45: 2
B46: Итого по МБ | C46: =SUM(C7:C45) -> 1554.75 | D46: 1661 | E46: 1153 | F46: 777 | G46: 590 | H46: 322 | I46: 180 | J46: 201 | K46: 333 | L46: 619
B47: НБ РС(Я) | C47: 255 | D47: 215 | E47: 200 | F47: 181 | G47: 138 | H47: 19 | I47: 11 | J47: 26 | K47: 32 | L47: 142
B48: ЦДЮ НБ РС(Я) | C48: 40 | D48: 41 | E48: 41 | F48: 39 | G48: 21 | H48: 2 | I48: 1 | J48: 4 | K48: 3 | L48: 34
B49: РБС | C49: 17 | D49: 17 | E49: 13 | F49: 11 | G49: 8 | H49: 2 | J49: 3 | K49: 4 | L49: 6
B50: ВСЕГО | C50: =SUM(C46:C49) -> 1866.75 | D50: =SUM(D46:D49) -> 1934 | E50: 1407 | F50: 1008 | G50: 757 | H50: 345 | I50: 192 | J50: 234 | K50: 372 | L50: 801
B51: КДУ | C51: 61.5 | D51: 61 | E51: 50 | F51: 28 | G51: 20 | H51: 17 | I51: 13 | J51: 11 | K51: 12 | L51: 27
B52: Итого по РС(Я) | C52: =SUM(C50:C51) -> 1928.25 | D52: =SUM(D50:D51) -> 1995 | E52: 1457 | F52: 1036 | G52: 777 | H52: 362 | I52: 205 | J52: 245 | K52: 384 | L52: 828

Sheet т.9.1
K1: Таблица 9.1
A2: Персонал библиотек (из общего числа- в сельской местности)
C4: Штат | D4: Числ. | E4: из них | F4: из них имеют | J4: со стажем работы
A5: № | B5: ЦБС | C5: библ. | D5: раб-ков | E5: осн. | F5: высшее | G5: из них | H5: среднее | I5: из них | J5: от 3 до | K5: от 6 до | L5: свыше
D6: всего | E6: перс. | F6: обр. | G6: библ. | H6: спец. | I6: библ. | J6: 6 лет | K6: 10 лет | L6: 10 лет
A7: 1 | B7: Абыйская | C7: 10 | D7: 10 | E7: 6 | F7: 3 | G7: 2 | H7: 3 | I7: 2 | K7: 2 | L7: 4
A8: 2 | B8: Аллаиховская | C8: 5.5 | D8: 7 | E8: 4 | F8: 1 | G8: 1 | H8: 2 | K8: 2 | L8: 2
A9: 3 | B9: Амгинская | C9: 57.5 | D9: 59 | E9: 42 | F9: 31 | G9: 22 | H9: 9 | I9: 7 | J9: 2 | K9: 11 | L9: 29
A10: 4 | B10: Анабарская | C10: 8 | D10: 8 | E10: 5 | F10: 1 | G10: 1 | H10: 3 | I10: 1 | J10: 2 | K10: 1 | L10: 2
A11: 5 | B11: Булунская | C11: 12 | D11: 11 | E11: 7 | F11: 2 | G11: 1 | H11: 3 | I11: 1 | J11: 3 | K11: 1 | L11: 3
A12: 6 | B12: Верхневилюйская* | C12: 57.5 | D12: 65 | E12: 43 | F12: 29 | G12: 26 | H12: 13 | I12: 8 | J12: 10 | K12: 10 | L12: 23
A13: 7 | B13: Верхнеколымская | C13: 4.5 | D13: 8 | E13: 5 | H13: 4 | L13: 5
A14: 8 | B14: Верхоянская | C14: 23 | D14: 28 | E14: 13 | F14: 3 | G14: 2 | H14: 10 | I14: 4 | J14: 4 | K14: 2 | L14: 7
A15: 9 | B15: Вилюйская | C15: 26.5 | D15: 32 | E15: 20 | F15: 15 | G15: 8 | H15: 5 | I15: 3 | J15: 4 | K15: 4 | L15: 12
A16: 10 | B16: Горная | C16: 24 | D16: 30 | E16: 20 | F16: 18 | G16: 16 | H16: 1 | I16: 1 | J16: 2 | K16: 8 | L16: 10
A17: 11 | B17: Жиганская | C17: 9 | D17: 9 | E17: 6 | F17: 4 | G17: 4 | H17: 2 | I17: 2 | J17: 1 | K17: 3 | L17: 2
A18: 12 | B18: Кобяйская | C18: 24.5 | D18: 30 | E18: 17 | F18: 9 | G18: 7 | H18: 8 | I18: 7 | J18: 1 | K18: 4 | L18: 12
A19: 13 | B19: Ленская | C19: 35 | D19: 35 | E19: 15 | F19: 4 | G19: 3 | H19: 5 | I19: 1 | J19: 3 | K19: 6 | L19: 6
A20: 14 | B20: Момская | C20: 20 | D20: 22 | E20: 14 | F20: 8 | G20: 7 | H20: 5 | I20: 3 | J20: 5 | K20: 3 | L20: 6
A21: 15 | B21: Намская | C21: 57.5 | D21: 65 | E21: 38 | F21: 29 | G21: 25 | H21: 7 | I21: 2 | J21: 8 | K21: 8 | L21: 22
A22: 16 | B22: Нижнеколымская | C22: 4 | D22: 3 | E22: 3 | F22: 1 | G22: 1 | H22: 2 | J22: 2 | L22: 1
A23: 17 | B23: Нюрбинская | C23: 27 | D23: 31 | E23: 23 | F23: 15 | G23: 12 | H23: 8 | I23: 7 | J23: 2 | K23: 3 | L23: 18
A24: 18 | B24: Оймяконская | C24: 10.5 | D24: 10 | E24: 8 | F24: 6 | G24: 5 | H24: 2 | I24: 2 | J24: 1 | K24: 3 | L24: 4
A25: 19 | B25: Олекминская | C25: 36.5 | D25: 44 | E25: 26 | F25: 11 | G25: 9 | H25: 9 | I25: 7 | J25: 2 | K25: 5 | L25: 19
A26: 20 | B26: Оленекская | C26: 14.5 | D26: 14 | E26: 13 | F26: 7 | G26: 4 | H26: 4 | I26: 3 | J26: 2 | K26: 8 | L26: 3
A27: 21 | B27: Среднеколымская | C27: 9 | D27: 9 | E27: 9 | F27: 2 | G27: 1 | H27: 6 | I27: 5 | J27: 1 | K27: 4 | L27: 4
A28: 22 | B28: Сунтарская | C28: 51.75 | D28: 54 | E28: 36 | F28: 23 | G28: 21 | H28: 11 | I28: 5 | J28: 4 | K28: 13 | L28: 19
A29: 23 | B29: Таттинская | C29: 42.5 | D29: 49 | E29: 31 | F29: 23 | G29: 19 | H29: 8 | I29: 6 | J29: 2 | K29: 7 | L29: 22
A30: 24 | B30: Томпонская | C30: 14 | D30: 13 | E30: 12 | F30: 7 | G30: 3 | H30: 3 | I30: 3 | J30: 5 | K30: 4 | L30: 3
A31: 25 | B31: Усть-Алданская* | C31: 73 | D31: 91 | E31: 55 | F31: 46 | G31: 43 | H31: 8 | I31: 3 | J31: 8 | K31: 15 | L31: 32
A32: 26 | B32: Усть-Майская | C32: 7 | D32: 7 | E32: 5 | F32: 2 | G32: 1 | H32: 3 | J32: 1 | K32: 2 | L32: 2
A33: 27 | B33: Усть-Янская | C33: 5 | D33: 5 | E33: 5 | F33: 2 | G33: 2 | H33: 1 | I33: 1 | J33: 1 | K33: 1 | L33: 3
A34: 28 | B34: Хангаласская | C34: 29.75 | D34: 44 | E34: 23 | F34: 18 | G34: 13 | H34: 5 | I34: 4 | J34: 2 | K34: 6 | L34: 15
A35: 29 | B35: Чурапчинская | C35: 48 | D35: 59 | E35: 35 | F35: 30 | G35: 28 | H35: 5 | I35: 3 | J35: 11 | K35: 5 | L35: 19
A36: 30 | B36: Мирнинская | C36: 4.5 | D36: 6 | E36: 3 | F36: 1 | H36: 2 | K36: 1 | L36: 2
A37: 31 | B37: Нерюнгринская | C37: 2 | D37: 2 | E37: 2 | H37: 2 | I37: 1 | J37: 1 | L37: 1
A38: 32 | B38: Эвено-Бытантайская | C38: 8 | D38: 10 | E38: 5 | H38: 4 | I38: 1 | K38: 1 | L38: 4
A39: 33 | B39: Якутская* | C39: 12 | D39: 13 | E39: 12 | F39: 11 | G39: 9 | H39: 1 | J39: 2 | K39: 2 | L39: 8
A40: 34 | B40: Алданский | C40: 2 | D40: 2 | E40: 2 | H40: 1 | K40: 2
A41: 35 | B41: М.-Кангаласский | C41: 29 | D41: 22 | E41: 20 | F41: 19 | G41: 19 | H41: 1 | I41: 1 | K41: 11 | L41: 9
A42: 36 | B42: Сунтарская ПДЮБ | C42: 7 | D42: 7 | E42: 5 | F42: 3 | G42: 3 | H42: 2 | I42: 2 | J42: 1 | L42: 4
A43: 37 | B43: Бердигестях ДБ* | C43: 7.5 | D43: 8 | E43: 4 | F43: 4 | G43: 4 | K43: 1 | L43: 3
B44: Итого по МБ | C44: =SUM(C7:C43) -> 819 | D44: 922 | E44: 592 | F44: 388 | G44: 322 | H44: 168 | I44: 96 | J44: 93 | K44: 159 | L44: 340
B45: КДУ | C45: 52.5 | D45: 52 | E45: 42 | F45: 25 | G45: 20 | H45: 13 | I45: 11 | J45: 9 | K45: 10 | L45: 23
B46: Итого по РС(Я) | C46: =SUM(C44:C45) -> 871.5 | D46: =SUM(D44:D45) -> 974 | E46: 634 | F46: 413 | G46: 342 | H46: 181 | I46: 107 | J46: 102 | K46: 169 | L46: 363

Sheet т.10
G1: Таблица 10
C2: Электронные (сетевые) ресурсы
A4: № | B4: ЦБС | C4: Число | D4: из них | E4: Число | F4: из них | G4: Число | H4: Число | I4: Объем | J4: Объем
C5: б-к, | E5: б-к, | F5: пред. | G5: б-к, | H5: б-к, | I5: ЭК | J5: ЭБ
C6: созд. | D6: доступ | E6: им. | F6: док. | G6: им. | H6: им.
C7: ЭК | D7: к ЭК | E7: ЭБ | F7: в откр. | G7: сетевые | H7: инсталл.
D8: через | F8: доступе | G8: лиценз. | H8: док.
D9: Инт. | G9: док.
A10: 1 | B10: Абыйская | C10: 1 | D10: 1 | I10: 15446
A11: 2 | B11: Аллаиховская | C11: 1 | I11: 6095
A12: 3 | B12: Амгинская | C12: 1 | D12: 1 | E12: 1 | F12: 1 | G12: 1 | I12: 11082 | J12: 51
A13: 4 | B13: Анабарская | C13: 1 | E13: 1 | F13: 1 | G13: 1 | I13: 7126 | J13: 18
A14: 5 | B14: Булунская | C14: 1 | I14: 20122
A15: 6 | B15: Верхневилюйская* | C15: 1 | D15: 1 | E15: 1 | F15: 1 | G15: 1 | H15: 1 | I15: 25324 | J15: 8879
A16: 7 | B16: Верхнеколымская | C16: 1 | G16: 1 | H16: 1 | I16: 4050
A17: 8 | B17: Верхоянская | C17: 1 | D17: 1 | H17: 1 | I17: 30389
A18: 9 | B18: Вилюйская | C18: 1 | D18: 1 | E18: 1 | F18: 1 | I18: 22135 | J18: 71
A19: 10 | B19: Горная | C19: 1 | D19: 1 | E19: 1 | F19: 1 | G19: 1 | H19: 1 | I19: 7877 | J19: 46
A20: 11 | B20: Жиганская | C20: 1 | D20: 1 | E20: 1 | I20: 7526 | J20: 94
A21: 12 | B21: Кобяйская | C21: 1 | E21: 1 | F21: 1 | G21: 1 | H21: 1 | I21: 21964 | J21: 73
A22: 13 | B22: Ленская | C22: 1 | D22: 1 | G22: 1 | H22: 1 | I22: 18113
A23: 14 | B23: Момская | C23: 1 | D23: 1 | I23: 2140
A24: 15 | B24: Намская | C24: 1 | D24: 1 | G24: 1 | H24: 1 | I24: 18033
A25: 16 | B25: Нижнеколымская | C25: 1 | I25: 1503
A26: 17 | B26: Нюрбинская | C26: 1 | D26: 1 | I26: 6724
A27: 18 | B27: Оймяконская | C27: 1 | D27: 1 | I27: 7055
A28: 19 | B28: Олекминская | C28: 1 | E28: 1 | H28: 1 | I28: 21223 | J28: 9990
A29: 20 | B29: Оленекская | C29: 1 | D29: 1 | I29: 5461
A30: 21 | B30: Среднеколымская | C30: 1 | D30: 1 | I30: 4040
A31: 22 | B31: Сунтарская | C31: 1 | D31: 1 | E31: 1 | F31: 1 | G31: 1 | H31: 1 | I31: 24710 | J31: 196
A32: 23 | B32: Таттинская | C32: 1 | D32: 1 | E32: 1 | F32: 1 | G32: 1 | H32: 1 | I32: 14205 | J32: 484
A33: 24 | B33: Томпонская | C33: 1 | E33: 1 | I33: 5399 | J33: 2531
A34: 25 | B34: Усть-Алданская | C34: 1 | D34: 1 | E34: 1 | F34: 1 | G34: 1 | H34: 1 | I34: 9193 | J34: 362
A35: 26 | B35: Усть-Майская | C35: 1 | D35: 1 | I35: 5339
A36: 27 | B36: Усть-Янская | C36: 1 | I36: 12949
A37: 28 | B37: Хангаласская | C37: 1 | D37: 1 | E37: 1 | F37: 1 | G37: 1 | H37: 1 | I37: 33735 | J37: 1571
A38: 29 | B38: Чурапчинская | C38: 1 | D38: 1 | G38: 1 | H38: 2 | I38: 4200
A39: 30 | B39: Мирнинская | C39: 1 | D39: 1 | E39: 1 | G39: 1 | H39: 1 | I39: 13739 | J39: 43
A40: 31 | B40: Нерюнгринская | C40: 1 | D40: 1 | E40: 1 | F40: 1 | G40: 1 | H40: 3 | I40: 62177 | J40: 1916
A41: 32 | B41: Эвено-Бытантайская | C41: 1 | D41: 1 | I41: 2110
A42: 33 | B42: Якутская* | C42: 1 | D42: 1 | E42: 1 | F42: 1 | G42: 2 | H42: 7 | I42: 161262 | J42: 422
A43: 34 | B43: Алданский | C43: 1 | D43: 1 | E43: 1 | F43: 1 | G43: 1 | H43: 1 | I43: 62315 | J43: 5500
A44: 35 | B44: Мегино-Канг. | C44: 1 | D44: 1 | I44: 27545
A45: 36 | B45: ГБ ГП "г.Нерюнгри " | C45: 1 | D45: 1 | H45: 1 | I45: 33670
A46: 37 | B46: Сунтарская ПДЮБ
A47: 38 | B47: Бердигестях ДБ | G47: 1
A48: 39 | B48: Б-ка ГО "п. Жатай"
B49: Итого по МБ | C49: =SUM(C10:C48) -> 36 | D49: =SUM(D10:D48) -> 27 | E49: =SUM(E10:E47) -> 17 | F49: =SUM(F10:F48) -> 13 | G49: =SUM(G10:G48) -> 19 | H49: =SUM(H10:H48) -> 27 | I49: =SUM(I10:I48) -> 735976 | J49: =SUM(J10:J48) -> 32247
B50: НБ РС(Я) | C50: 1 | D50: 1 | E50: 1 | F50: 1 | G50: 1 | H50: 1 | I50: 724458 | J50: 33840
B51: ЦДЮ НБ РС(Я) | C51: 1 | D51: 1 | I51: 63020
B52: РБС | C52: 1 | D52: 1 | E52: 1 | F52: 1 | G52: 1 | H52: 1 | I52: 29005 | J52: 19793
B53: ВСЕГО | C53: =SUM(C49:C52) -> 39 | D53: 30 | E53: 19 | F53: 15 | G53: 21 | H53: 29 | I53: 1552459 | J53: 85880

Sheet т.11
F1: Таблица 11
A2: Информационное обслуживание
A4: № | B4: ЦБС | C4: всего | D4: в том числе | F4: Число обращений удал. польз. | G4: Из них обращений к сайту | H4: Выполнено справок и консульт.
C5: документов | D5: МБА, ММБА | E5: вирт. Чит. Залы
C6: из фондов
C7: др. б-к
A8: 1 | B8: Абыйская | C8: 7 | D8: 7 | F8: 2250 | G8: 367 | H8: 2864
A9: 2 | B9: Аллаиховская | F9: 378 | H9: 380
A10: 3 | B10: Амгинская | C10: 332 | D10: 21 | E10: 311 | F10: 2419 | G10: 1760 | H10: 4246
A11: 4 | B11: Анабарская | F11: 908 | G11: 258 | H11: 2372
A12: 5 | B12: Булунская | F12: 1977 | G12: 1238 | H12: 3281
A13: 6 | B13: Верхневилюйская* | C13: 89 | D13: 89 | F13: 9140 | G13: 417 | H13: 6003
A14: 7 | B14: Верхнеколымская | F14: 21558 | G14: 19932 | H14: 4470
A15: 8 | B15: Верхоянская | C15: 13 | E15: 13 | F15: 1516 | G15: 3 | H15: 3678
A16: 9 | B16: Вилюйская | F16: 20721 | G16: 19987 | H16: 11465
A17: 10 | B17: Горная | C17: 2301 | D17: 2301 | F17: 3421 | G17: 1302 | H17: 2023
A18: 11 | B18: Жиганская | F18: 5533 | G18: 206 | H18: 10617
A19: 12 | B19: Кобяйская | C19: 90 | D19: 90 | F19: 9722 | G19: 2679 | H19: 5104
A20: 13 | B20: Ленская | C20: 74 | D20: 74 | F20: 383 | H20: 12024
A21: 14 | B21: Момская | C21: 3 | D21: 3 | F21: 207 | H21: 898
A22: 15 | B22: Намская | C22: 32 | D22: 32 | F22: 3353 | G22: 2365 | H22: 4423
A23: 16 | B23: Нижнеколымская | H23: 967
A24: 17 | B24: Нюрбинская | F24: 2201 | G24: 318 | H24: 10311
A25: 18 | B25: Оймяконская | F25: 3434 | G25: 1575 | H25: 4029
A26: 19 | B26: Олекминская | F26: 2873 | G26: 1037 | H26: 16225
A27: 20 | B27: Оленекская | C27: 9 | D27: 9 | F27: 8345 | G27: 7456 | H27: 1372
A28: 21 | B28: Среднеколымская | F28: 1951 | G28: 1502 | H28: 1874
A29: 22 | B29: Сунтарская | C29: 16 | D29: 16 | F29: 14794 | G29: 10490 | H29: 6048
A30: 23 | B30: Таттинская | C30: 78 | D30: 10 | E30: 68 | F30: 59570 | G30: 45513 | H30: 2803
A31: 24 | B31: Томпонская | F31: 6391 | H31: 6444
A32: 25 | B32: Усть-Алданская | F32: 15173 | G32: 5977 | H32: 18229
A33: 26 | B33: Усть-Майская | C33: 1143 | D33: 1143 | F33: 6323 | G33: 2797 | H33: 3079
A34: 27 | B34: Усть-Янская | F34: 3047 | G34: 598 | H34: 3580
A35: 28 | B35: Хангаласская | C35: 459 | D35: 459 | F35: 18340 | G35: 14324 | H35: 12321
A36: 29 | B36: Чурапчинская | C36: 60 | D36: 1 | E36: 59 | F36: 8038 | G36: 6641 | H36: 5789
A37: 30 | B37: Мирнинская | C37: 10 | D37: 10 | F37: 9133 | G37: 5219 | H37: 12139
A38: 31 | B38: Нерюнгринская | C38: 82 | D38: 17 | E38: 65 | F38: 22693 | G38: 19051 | H38: 9440
A39: 32 | B39: Эвено-Бытантай | F39: 900 | G39: 25 | H39: 114
A40: 33 | B40: Якутская* | C40: 431 | D40: 431 | F40: 47162 | G40: 17796 | H40: 24876
A41: 34 | B41: Алданский | C41: 44 | D41: 2 | E41: 42 | F41: 240847 | G41: 222543 | H41: 2487
A42: 35 | B42: Мегино-Канг. | C42: 225 | D42: 225 | F42: 3655 | G42: 2242 | H42: 892
A43: 36 | B43: ГБ ГП "г.Нерюнгри " | C43: 45 | D43: 45 | F43: 12201 | G43: 12201 | H43: 5524
A44: 37 | B44: Сунтарская ДЮПБ | H44: 1300
A45: 38 | B45: Бердигестях ДБ | F45: 17969 | G45: 17135 | H45: 294
A46: 39 | B46: Б-ка ГО "п. Жатай" | F46: 1350 | G46: 1350 | H46: 585
B47: ИТОГО по МБ | C47: =SUM(C8:C46) -> 5543 | D47: 4985 | E47: 558 | F47: 589876 | G47: 446304 | H47: 224570
B48: НБ РС(Я) | C48: 269 | D48: 18 | E48: 251 | F48: 177903 | G48: 176542 | H48: 9788
B49: ЦДЮ НБ РС(Я) | C49: 40 | D49: 40 | F49: 15143 | G49: 4562 | H49: 1617
B50: РБС | C50: 103 | D50: 103 | F50: 4324 | G50: 3322 | H50: 3121
B51: ВСЕГО | C51: =SUM(C47:C50) -> 5955 | D51: 5146 | E51: 809 | F51: 787246 | G51: 630730 | H51: 239096
B52: КДУ | F52: 810 | H52: 4054
B53: Итого по РС(Я) | C53: =SUM(C51:C52) -> 5955 | D53: 5146 | E53: 809 | F53: 788056 | G53: 630730 | H53: 243150

Sheet Лист2
